Workbook

Sheet DADOS
C1: ANTES DE CADASTRAR OS DADOS, UTILIZE A OPÇÃO "SALVAR COMO" E CRIE UMA CÓPIA DESTE ARQUIVO
AA2: UF | AB2: mês | AC2: TEXTO | AD2: TIPO DE PROJETO | AE2: PESSOA | AF2: DOC1 | AG2: DOC2 | AH2: ZONA | AI2: MEDIÇÕES | AJ2: MED | AK2: OBS | AL2: ORGAO | AM2: ano
AA3: PB | AB3: Janeiro | AC3: Favor Informar o total de UCs do empreendimento. | AD3: Subestação Aérea | AE3: Pessoa Física | AF3: CPF: | AG3: RG/EMISSOR: | AH3: Urbana | AI3: NÃO | AJ3: Nº UC: | AK3: OBSERVAÇÃO: | AL3: CREA | AM3: =YEAR(TODAY()) -> 2017
C4: MEMORIAL TÉCNICO PARA PROJETO ELÉTRICO DE PADRÃO DE MEDIÇÃO PARA SUBESTAÇÃO AÉREA | AA4: AC | AB4: Feveireiro | AC4: Favor informar a existencia ou não de medição(ões) existente(s) no local a ser atendido. | AD4: Subestação p/ Canteiro de Obras | AE4: Poder Publico | AF4: CNPJ: | AG4: INSC.ESTADUAL: | AH4: Rural | AI4: SIM | AJ4: Nº MEDIDOR: | AK4: OBSERVAÇÃO: Por se tratar de um nº superior a 20 UCs existentes, favor informar as demais medições no espaço abaixo. | AL4: CAU | AM4: =AM3+1 -> 2018
AA5: AL | AB5: Março | AC5: Informo a NÃO EXISTÊNCIA de unidades Ligadas ou Desligadas mesmo que provinientes de imóvel já demolido no local a ser atendido. | AE5: Empresa Privada | AL5: Outros | AM5: =AM4+1 -> 2019
AA6: AM | AB6: Abril | AC6: Descrição das UC(S) ou Medidor (es) existente(s) no local a ser atendido.
C7: TIPO DE PROJETO: | F7: Subestação Aérea | M7: PREVISÃO DE ATENDIMENTO: | R7: Junho | U7: 2017 | AA7: AP | AB7: Maio | AC7: Favor Informar o quantitativo de UC(s) existente(s).
C8: FINALIDADE: | F8: Atender a um Hotel com entrada em tensão primária. | AA8: BA | AB8: Junho | AC8: Existem Dados não informados para os campos acima!!! Favor preencher os campos solicitados!!!
AA9: CE | AB9: Julho
AA10: DF | AB10: Agosto
AA11: ES | AB11: Setembro
C12: DADOS DO PROPRIETÁRIO | G12: =AC16 ->  | AA12: GO | AB12: Outubro
AA13: MA | AB13: Novembro
C14: NOME: | F14: Proprietário Exemplo | AA14: MG | AB14: Dezembro
C15: PESSOA: | F15: Empresa Privada | J15: =IF((F15=""),"-",(IF((F15=$AE$3),$AF$3,$AF$4))) -> CNPJ: | L15: 25.086.034/0001-71 | P15: =IF((F15=""),"-",(IF((F15=$AE$3),$AG$3,$AG$4))) -> INSC.ESTADUAL: | S15: 123456 | AA15: MS | AD15: 0
C16: ENDEREÇO: | F16: Rua Endereço do Proprietario | P16: Nº: | Q16: 111 | S16: COMP.: | AA16: MT | AB16: proprietarios | AC16: =IF((AD16>0),$AC$8,"") ->  | AD16: =COUNTIF(AE16:AG16,$AD$15) -> 0 | AE16: =F7 -> Subestação Aérea | AF16: =U7 -> 2017 | AG16: =F8 -> Atender a um Hotel com entrada em tensão primária.
C17: BAIRRO: | F17: Manaira | L17: CIDADE: | N17: João Pessoa | U17: UF: | V17: PB | AA17: PA | AB17: obra | AC17: =IF((AD17>0),$AC$8,"") ->  | AD17: =COUNTIF(AE17:AO17,$AD$15) -> 0 | AE17: =F14 -> Proprietário Exemplo | AF17: =F15 -> Empresa Privada | AG17: =L15 -> 25.086.034/0001-71 | AH17: =S15 -> 123456 | AI17: =F16 -> Rua Endereço do Proprietario | AJ17: =Q16 -> 111 | AK17: =F17 -> Manaira | AL17: =N17 -> João Pessoa | AM17: =V17 -> PB | AN17: =F18 -> email@proprietario.com.br | AO17: =F20 -> (83) 12345-6789
C18: EMAIL: | F18: email@proprietario.com.br | AA18: ão | AB18: mediç | AC18: =IF((AD18>0),$AC$8,"") ->  | AD18: =COUNTIF(AE18:AJ18,$AD$15) -> 0 | AE18: =F23 -> Hotel Exemplo | AF18: =F24 -> Rua do Hotel Exemplo | AG18: =Q24 -> 222 | AH18: =F25 -> Tambaú | AI18: =N25 -> João Pessoa | AJ18: =U25 -> Urbana
AA19: PI | AB19: OBS | AC19: =IF((U28>20),$AK$4,$AK$3) -> OBSERVAÇÃO: | AD19: =COUNTIF(AE19:AG19,$AD$15) -> 0
C20: TELEFONE-01: | F20: (83) 12345-6789 | K20: 02: | Q20: 03: | AA20: PR | AB20: PROJ | AC20: =AC18 -> 
C21: DADOS DA OBRA | G21: =AC17 ->  | AA21: RJ | AB21: PARECER | AC21: =IF((AD21>0),$AC$8,"") ->  | AD21: =COUNTIF(AE21:AJ21,$AD$15) -> 0 | AE21: =F43 -> Projetista Modelo | AF21: =F44 -> 4551626 | AG21: =L44 -> CREA | AH21: =S44 -> 123.4565.789-11 | AI21: =F45 -> email@projetista.com.br | AJ21: =F47 -> (83) 98765-4321
AA22: RN | AB22: PARECER ENERGISA: | AC22: =IF((AD21=0),AB22,"") -> PARECER ENERGISA:
C23: EDIFICAÇÃO: | F23: Hotel Exemplo | AA23: RO | AB23: 1 | AC23: =VLOOKUP(AB23,AB24:AC27,2,FALSE) -> Descrição das UC(S) ou Medidor (es) existente(s) no local a ser atendido.
C24: ENDEREÇO: | F24: Rua do Hotel Exemplo | P24: N°: | Q24: 222 | S24: COMP.: | AA24: RR | AB24: =IF((Q28=0),1,0) -> 0 | AC24: Favor informar a existencia ou não de medição(ões) existente(s) no local a ser atendido.
C25: BAIRRO: | F25: Tambaú | L25: CIDADE: | N25: João Pessoa | S25: ZONA: | U25: Urbana | AA25: RS | AB25: =IF(AND((AB24=0),(Q28=AI3)),1,0) -> 0 | AC25: Informo a NÃO EXISTÊNCIA de unidades Ligadas ou Desligadas mesmo que provinientes de imóvel já demolido no local a ser atendido.
C26: MEDIÇÕES EXISTENTES: | G26: =AC18 ->  | AA26: SC | AB26: =IF(AND((AB25=0),(Q28=AI4),(U28=0)),1,0) -> 0 | AC26: Favor Informar o quantitativo de UC(s) existente(s).
AA27: SE | AB27: =IF(AND((AB26=0),(Q28=AI4),(U28>0)),1,0) -> 1 | AC27: Descrição das UC(S) ou Medidor (es) existente(s) no local a ser atendido.
C28: TOTAL DE UNIDADES: | F28: 01 Medição | H28: EXISTE ALGUMA MEDIÇÃO NO LOCAL A SER ATENDIDO? | Q28: SIM | S28: QUANTAS? | U28: 1 | AA28: SP
C29: =AC23 -> Descrição das UC(S) ou Medidor (es) existente(s) no local a ser atendido. | AA29: TO
C30: Nº UC: | E30: 1234566
AD31: Favor preencher os dods referente ao campo
AB32: TIPO DE PROJETO | AC32: =CONCATENATE($AD$31,AB32) -> Favor preencher os dods referente ao campo TIPO DE PROJETO | AD32: =CONCATENATE($AD$31,AB32) -> Favor preencher os dods referente ao campo TIPO DE PROJETO | AE32: o
AB33: PREVISAO DE ATENDIMENTO
AA34: DADOS DO PROPRIETÁRIO: | AB34: NOME
C35: =AC19 -> OBSERVAÇÃO: | AB35: PESSOA
C36: Existe uma medição do canteiro de obras em baixa tensão tarifada no grupo B que deverá ser desativada quando da energização do hotel que será atendido em média tensão tarifado no Grupo A | AB36: CPF/CNPJ
AB37: RG/EMISSOR/INSC ESTADUAL
AB38: ENDEREÇO
C41: DADOS DO RESP. TÉCNICO | G41: =AC20 -> 
C43: NOME: | F43: Projetista Modelo
C44: REG. PROFISSIONAL: | F44: 4551626 | J44: ORGÃO: | L44: CREA | P44: CPF: | S44: 123.4565.789-11
C45: EMAIL: | F45: email@projetista.com.br
C47: TELEFONE-01: | F47: (83) 98765-4321 | K47: 02: | Q47: 03:
F48: =AC21 ->  | T48: =AC22 -> PARECER ENERGISA:
C56: ESPAÇO PARA INSERIR LOGOTIPO DA EMPRESA RESPONSAVEL PELA ELABORAÇÃO DO PROJETO

Sheet DEMANDA
B1: =AC37 -> DADOS CONFIRMADOS PARA AVALIAÇÃO DA CONCESSIONÁRIA
B3: DECLARAÇÃO DE CARGA E CÁLCULO E DEMANDA
B4: DECLARAÇÃO DE CARGA INSTALADA | L4: CÁLCULO DA DEMANDA INDIVIDUAL | AB4: =M5 -> 15 - Indústria metalúrgica | AC4: Carga | AD4: Fd | AE4: D | AF4: ( | AG4: ) | AH4: x | AI4: DEMANDA (KVA) = ( | AJ4: = | AK4: +
B5: PROPRIETÁRIO: | C5: =AB34 -> Proprietário Exemplo | L5: RAMO DE ATIVIDADE: | M5: 15 - Indústria metalúrgica | AB5: 1 | AC5: =TRUNC((VLOOKUP($AB$4,AUX!$T$5:$Z$169,5,FALSE)),2) -> 234.46 | AD5: =(VLOOKUP($AB$4,AUX!$T$5:$Z$169,2,FALSE))/100 -> 0.65 | AE5: =TRUNC((AC5*AD5),2) -> 152.39 | AF5: =CONCATENATE(AI4,$AF$4,AC5,$AH$4,AD5,$AJ$4,AE5,$AG$4) -> DEMANDA (KVA) = ((234,46 x 0,65 = 152,39) | AH5: 0 | AI5: A metodologia do Cálculo de Demanda ainda não foi definida pelo projetista
B6: EDIFICAÇÃO: | C6: =AB35 -> Hotel Exemplo | L6: MÉTODO DE CÁLCULO: | M6: Utilizar Fator de Demanda e Fator de Potencia conforme NDU 002 | AB6: 2 | AC6: =TRUNC((VLOOKUP($AB$4,AUX!$T$5:$Z$169,6,FALSE)),2) -> 0 | AD6: =(VLOOKUP($AB$4,AUX!$T$5:$Z$169,3,FALSE))/100 -> 0 | AE6: =TRUNC((AC6*AD6),2) -> 0 | AF6: =IF((AE6=0),"",(CONCATENATE(AK4,$AF$4,AC6,$AH$4,AD6,$AJ$4,AE6,$AG$4))) ->  | AH6: =AI9 -> Utilizar Fator de Demanda e Fator de Potencia conforme NDU 002 | AI6: =CONCATENATE(AF5,AF6,AF7) -> DEMANDA (KVA) = ((234,46 x 0,65 = 152,39)) / 0,92
B7: ENDEREÇO: | C7: Rua do Hotel Exemplo | L7: TIPO DE LIGAÇÃO: | M7: Trifásico | O7: RAMAL DE LIGAÇÃO: | Q7: Cabo nu - 2AWG | AB7: 3 | AC7: =TRUNC((VLOOKUP($AB$4,AUX!$T$5:$Z$169,7,FALSE)),2) -> 0 | AD7: =(VLOOKUP($AB$4,AUX!$T$5:$Z$169,4,FALSE))/100 -> 0 | AE7: 0 | AF7: =IF((AE7=0),AG7,(CONCATENATE(AK4,$AF$4,AC7,$AH$4,AD7,$AJ$4,AE7,$AG$4,AG7))) -> ) / 0,92 | AG7: ) / 0,92 | AH7: =AI10 -> Utilizar Fator de Demanda e Fator de Potência Definidos pelo Projetista | AI7: DEMANDA (KVA) = (CARGA (KW) x FD) / FP | AJ7: =SUM(I9:I33) -> 234.464
B8: CARGA | C8: TIPO DE CARGA | D8: QTD | E8: EIXO (CV) | F8: TENSÃO (V) | G8: POT. IND. (W) | H8: FP | I8: CARGA (kW) | J8: CARGA (kVA) | L8: CARGA (kW) | M8: FD | O8: FP | Q8: DEMANDA (kVA) | R8: DEMANDA (kW) | AA8: =IF(OR(L13=0,M13=0),0,1) -> 1 | AB8: total | AC8: =SUM(AC5:AC7) -> 234.46 | AD8: =AE8/AC8 -> 0.6499616139 | AE8: =SUM(AE5:AE7) -> 152.39 | AF8: =TRUNC((AE8/0.92),2) -> 165.64
B9: Iluminação | C9: Ilum./Tomadas | D9: 100 | F9: 220V | G9: 60 | H9: 0.92 | I9: =IF(OR((C9=0),(D9=0)),"-",(IF(OR((C9=$AF$16),(C9=$AF$17)),(D9*E9*0.736),((D9*G9)/1000)))) -> 6 | J9: =IF(OR((I9="-"),(H9=0)),"-",(I9/H9)) -> 6.52173913 | L9: =IF((AB18=0),"-",AB18) -> 234.464 | M9: =IF(OR(AB18=0,M5=0,M6<>AI9),"-",AD8) -> 0.6499616139 | O9: =IF(OR(AB18=0,M5=0,M6<>AI9),"-",0.92) -> 0.92 | Q9: =IF(OR(AB18=0,M6=0),"-",((IF((M6=AI9),AF8,(IF(OR(N9="",P9=""),"-",(L9*N9)/P9)))))) -> 165.64 | R9: =IF((Q9="-"),"-",(IF((M6=AH6),(Q9*O9),(Q9*P9)))) -> 152.3888 | AA9: FASE | AB9: =IF((M7=""),"-",(VLOOKUP(M7,AJ9:AK10,2,FALSE))) -> 3# | AC9: =IF(OR((M13=""),(AB18<=0)),"-",1) -> 1 | AF9: Ilum./Tomadas | AG9: 220V | AH9: =AUX!T5 -> 1 - Indústria de extração e tratamento de minerais | AI9: Utilizar Fator de Demanda e Fator de Potencia conforme NDU 002 | AJ9: =IF(OR(AJ12>0,AC18>15),AJ10,AJ11) -> Trifásico | AK9: =IF((AJ9=AJ10),"3#","1#") -> 3# | AL9: Subterraneo | AM9: XLPE /EPR/HEPR - 0,6/1kV | AN9: 5 | AO9: GRUPO A | AP9: =AO9 -> GRUPO A | AQ9: HORO-SAZONAL VERDE | AR9: =IF((AR12=0),AR13,(IF((L19=AO9),AQ9,AQ11))) -> HORO-SAZONAL VERDE | AV9: =C9 -> Ilum./Tomadas
B10: Tomadas | C10: Ilum./Tomadas | D10: 60 | F10: 220V | G10: 300 | H10: 0.92 | I10: =IF(OR((C10=0),(D10=0)),"-",(IF(OR((C10=$AF$16),(C10=$AF$17)),(D10*E10*0.736),((D10*G10)/1000)))) -> 18 | J10: =IF(OR((I10="-"),(H10=0)),"-",(I10/H10)) -> 19.56521739 | L10: Fórmula Adotada para a Demanda: | N10: =VLOOKUP(M6,AH5:AI7,2,FALSE) -> DEMANDA (KVA) = ((234,46 x 0,65 = 152,39)) / 0,92 | AA10: SE | AB10: =IF((AA8=0),"-",(CONCATENATE(AB9,AC10))) -> 3#225 | AC10: =L13 -> 225 | AF10: Aquecimento | AG10: 380V | AH10: =AUX!T6 -> 2 - Extração de minérios de ferro | AI10: Utilizar Fator de Demanda e Fator de Potência Definidos pelo Projetista | AJ10: Trifásico | AK10: 3# | AL10: Cabo nu - 2AWG | AM10: PVC - 0,6/1kV | AN10: 6 | AO10: GRUPO A OPTANTE B | AP10: =IF((AC10<AB28),AO10,AO9) -> GRUPO A | AQ10: HORO-SAZONAL AZUL | AR10: =IF((AR12=0),AR13,(IF((L19=AO9),AQ10,AQ11))) -> HORO-SAZONAL AZUL | AV10: =C10 -> Ilum./Tomadas
B11: Chuv. Eletrico | C11: Aquecimento | D11: 8 | F11: 220V | G11: 4500 | H11: 1 | I11: 36 | J11: 36 | L11: SE ADOTADA (kVA) | M11: CABEAMENTO DE BAIXA TENSÃO | R11: ELETRODUTO | AA11: CABO | AB11: =IF((AA8=0),"-",(VLOOKUP($AB$10,AUX!$A$4:$J$16,AC11,FALSE))) -> 3#240(120) | AC11: =IF(OR((M13=""),($AC$9="-")),12,(VLOOKUP(M13,AM9:AN10,2,FALSE))) -> 5 | AF11: Tomadas Especiais | AH11: =AUX!T8 -> 3 - Extração de minérios de metais não ferrosos | AJ11: Monofásico | AL11: Cabo nu - 1/0AWG | AQ11: CONVENCIONAL | AR11: =IF((AR12=0),AR13,(IF((Q19>150),AR10,AQ11))) -> CONVENCIONAL | AV11: Aquecimento
B12: Central de Ar | C12: Refrigeração | D12: 2 | F12: 380V | G12: 60000 | H12: 0.9 | I12: 120 | J12: 133.3333333 | M12: ISOLAMENTO | P12: CONDUTORES (mm²) | R12: (mm) | AA12: ELET | AB12: =IF((AA8=0),"-",(VLOOKUP($AB$10,AUX!$A$4:$J$16,AC12,FALSE))) -> 100 | AC12: =IF(OR((M13=""),($AC$9="-")),12,(AC11+2)) -> 7 | AF12: Fogão/Forno Elétrico | AH12: =AUX!T9 -> 4 - Extração de minerais para fabricação de adubos fertilizantes e para elaboração de outros produtos químicos | AJ12: =COUNTIF(F9:F33,AG10) -> 3 | AL12: Cabo Protegido - 50mm² | AQ12: =IF(AND(L19=AO9,M19=AQ10),1,0) -> 1 | AR12: =IF((L19=0),0,1) -> 1 | AV12: Refrigeração
B13: Exautores | C13: Motriz Monofásica | D13: 12 | E13: 2 | F13: 220V | G13: 2208 | H13: 0.96 | I13: 17.664 | J13: 18.4 | L13: 225 | M13: XLPE /EPR/HEPR - 0,6/1kV | P13: =AB11 -> 3#240(120) | R13: =AB12 -> 100 | AA13: POSTE | AB13: =IF((AA8=0),"-",(VLOOKUP($AB$10,AUX!$A$4:$J$16,AC13,FALSE))) -> 1000 | AC13: =IF(($AC$9="-"),12,9) -> 9 | AF13: Refrigeração | AH13: =AUX!T10 -> 5 - Extração de pedras e outros minerais para construção | AL13: Cabo Protegido - 120mm² | AP13: =AQ14*AQ15*AQ16 -> 1 | AQ13: =AQ14*AQ17*AQ18 -> 1 | AR13: Favor Informar o Grupo Tarifário!!! | AV13: Motriz Monofásica
B14: Bomba | C14: Motriz Trifásica | D14: 4 | E14: 5 | F14: 380V | G14: 3680 | H14: 0.9 | I14: 14.72 | J14: 16.35555556 | L14: POSTE (daN) | M14: DISJUNTOR (A) | O14: ELO FUSIVEL | Q14: RELAÇÃO DE TC | R14: MEDIDOR | AA14: DISJUNTOR | AB14: =IF((AA8=0),"-",(VLOOKUP($AB$10,AUX!$A$4:$J$16,AC14,FALSE))) -> 350 | AC14: =IF(($AC$9="-"),12,4) -> 4 | AF14: Raios-X | AH14: =AUX!T11 -> 6 - Extração de pedras e outros minerais não metálicos | AL14: Cabo Protegido - 185mm² | AP14: A | AQ14: =IF((L19=AO9),1,0) -> 1 | AV14: Motriz Trifásica
B15: Elevador | C15: Motriz Trifásica | D15: 3 | E15: 10 | F15: 380V | G15: 7360 | H15: 0.9 | I15: 22.08 | J15: 24.53333333 | AA15: ELO | AB15: =IF((AA8=0),"-",(VLOOKUP($AB$10,AUX!$A$4:$J$16,AC15,FALSE))) -> 10K | AC15: =IF(($AC$9="-"),12,10) -> 10 | AF15: Maq. Solda | AH15: =AUX!T12 -> 7 - Aparelhamento de pedras para construção e execução de trabalhos em mármore, ardósia, granito e outras pedras | AP15: <=2500 | AQ15: =IF((Q19<=2500),1,0) -> 1 | AV15: Motriz Trifásica
I16: - | J16: - | L16: =AB13 -> 1000 | M16: =AB14 -> 350 | O16: =AB15 -> 10K | Q16: =AB16 -> 250:5 | R16: =AB17 -> Medição Trif. Indireta | AA16: TC | AB16: =IF((AA8=0),"-",(VLOOKUP($AB$10,AUX!$A$4:$J$16,AC16,FALSE))) -> 250:5 | AC16: =IF(($AC$9="-"),12,3) -> 3 | AF16: Motriz Monofásica | AH16: =AUX!T13 -> 8 - Britamento de pedras | AP16: c<150 | AQ16: =IF(AND(M19=AQ11,Q19<150),1,IF((M19<>AQ11),1,0)) -> 1 | AV16: 0
I17: - | J17: - | L17: OPÇÃO TARIFÁRIA | M17: MODALIDADE TARIFÁRIA | Q17: DEMANDA CONTRATADA (kW) | AA17: MEDIDOR | AB17: =IF((AA8=0),"-",(VLOOKUP($AB$10,AUX!$A$4:$K$16,AC17,FALSE))) -> Medição Trif. Indireta | AC17: =IF(($AC$9="-"),12,11) -> 11 | AF17: Motriz Trifásica | AH17: =AUX!T15 -> 9 - Fabricação de cal | AP17: hs azul | AQ17: =IF((M19=AQ10),1,0) -> 1 | AV17: 0
I18: - | J18: - | Q18: FORA PONTA | R18: PONTA | AA18: CARGA | AB18: =SUM(I9:I33) -> 234.464 | AC18: =Q9 -> 165.64 | AD18: =IF(OR(AB18=0,M6=0),"-",(IF((M6=AI9),AE8,((L9*N9)/P9)))) -> 152.39 | AE18: 15.4 | AH18: =AUX!T16 -> 10 - Fabricação de telhas, tijolos e outros artigos de barro cozido exclusive cerâmica | AP18: <=2500 | AQ18: =IF((R19<=2500),1,0) -> 1 | AV18: 0
I19: - | J19: - | L19: GRUPO A | M19: HORO-SAZONAL AZUL | Q19: 100 | R19: 180 | AA19: CONTRATADA | AB19: =Q19/0.92 -> 108.6956522 | AC19: =R19/0.92 -> 195.6521739 | AH19: =AUX!T18 -> 11 - Fabricação de material cerâmico - exclusive de barro cozido | AV19: 0
I20: - | J20: - | L20: NOTAS COMPLEMENTARES: | AA20: trafo min | AB20: =IF(($M$7=$AJ$11),(VLOOKUP($AB$18,$AA$21:$AF$24,6,TRUE)),(IF(($M$7=$AJ$10),(VLOOKUP($AC$18,$AA$21:$AB$31,2,TRUE)),$AF$25))) -> 225 | AC20: x | AD20: SE Incompatível | AE20: a | AH20: =AUX!T20 -> 12 - Fabricação de cimento | AV20: 0
I21: - | J21: - | L21: • O fornecimento será feito através de um só ponto de entrega e não deverá passar sobre área construída e não ser acessível de janelas, sacadas, telhados, escadas, áreas adjacentes, etc., observando as distâncias mínimas regulamentadas nos desenhos 29 e 30 da NDU 002; • Os condutores do ramal de entrada deverão possuir identificação no ponto de derivação e no ponto de conexão à medição, onde não serão permitidas emendas nos condutores. Deverão ser de cobre, classe 2 de encordoamento e isolamento do tipo PVC, HEPR, EPR ou XLPE, todos para classe de tensão em 0,6/1,0 kV. Não será permitido o uso de cabos de cobre com encordoamento flexível sem o uso de terminais tubulares, nos condutores do ramal de entrada e de saída do medidor até o centro de distribuição. • Deverá ser utilizado eletroduto de aço galvanizado. • A localização da subestação será estabelecida de comum acordo entre a Concessionária e o consumidor, preservando sempre critérios técnicos e de segurança. A mesma deverá ser construída em local de livre e fácil acesso, em condições adequadas de iluminação, ventilação e segurança. • O dimensionamento do transformador deverá ser tal que a demanda máxima da instalação consumidora não seja superior à potência nominal de transformação instalada • As hastes deverão ser cobreadas, e seu comprimento de 2,4m, com distância entre elas de 3 metros. Todas as ligações de condutores deverão ser feitas com conectores tipo solda exotérmica ou tipo terminal cabo-barra (GTDU), sendo obrigatório o uso de massa calafetadora em todas as conexões do aterramento onde o valor da resistência de aterramento apresentada pela malha de terra que não deve ultrapassar 10 (dez) Ohms (medida em qualquer época do ano). O cabo de aterramento deve ser contínuo, nu e sem emendas. • A interligação de todo o circuito de aterramento e sua ligação ao neutro deverá ser feita com cabo de cobre nu 50mm². • O neutro do sistema secundário é acessível e deve ser diretamente interligado à malha de aterramento da unidade consumidora e ao neutro do transformador.Poderá assumir a mesma seção do condutor Fase. | AA21: 0 | AB21: 5 | AC21: =IF(AND($M$7<>"",$AB$20<>$AC$20),(IF(($AB$20>AB21),$AB$20,AB21)),$AF$25) -> 225 | AD21: =IF(($AB$20=$AC$20),$AD$20,(IF(($AB$20>AB21),$AB$20,AB21))) -> 225 | AE21: b | AF21: 5 | AH21: =AUX!T21 -> 13 - Fabricação de peças, ornatos e estruturas de cimento, gesso e amianto | AV21: 0
I22: - | J22: - | AA22: 5.1 | AB22: 10 | AC22: =IF(AND($M$7<>"",$AB$20<>$AC$20),(IF(($AB$20>AB22),$AB$20,AB22)),$AF$25) -> 225 | AD22: =IF(($AB$20=$AC$20),$AD$20,(IF(($AB$20>AB22),$AB$20,AB22))) -> 225 | AE22: c | AF22: 10 | AH22: =AUX!T22 -> 14 - Beneficiamento e preparação de minerais não metálicos, não associados à extração | AV22: 0
I23: - | J23: - | AA23: 10.1 | AB23: 15 | AC23: =IF(AND(($M$7<>""),($AB$18>0)),(IF(($AC$18>AB23),AC24,AB23)),"-") -> 225 | AD23: 225 | AE23: d | AF23: 15 | AH23: =AUX!T23 -> 15 - Indústria metalúrgica | AV23: 0
I24: - | J24: - | AA24: 15.1 | AB24: 30 | AC24: =IF(AND(($M$7<>""),($AB$18>0)),(IF(($M$7=$AJ$11),AC23,((IF(($AC$18>AB24),AC25,AB24))))),"-") -> 225 | AD24: =IF(($M$7=$AJ$11),$AD$23,(IF(($AB$20=$AC$20),$AD$20,(IF(($AB$20>AB24),$AB$20,AB24))))) -> 225 | AE24: e | AF24: SE Incompatível | AH24: =AUX!T24 -> 16 - Produção de ferro gusa | AV24: 0
I25: - | J25: - | AA25: 30.1 | AB25: 45 | AC25: 225 | AD25: =IF(($M$7=$AJ$11),$AD$23,(IF(($AB$20=$AC$20),$AD$20,(IF(($AB$20>AB25),$AB$20,AB25))))) -> 225 | AE25: f | AF25: Informe tipo de Ligação | AH25: =AUX!T25 -> 17 - Produção de laminados de aço - inclusive de ferro ligas | AV25: 0
I26: - | J26: - | AA26: 45.1 | AB26: 75 | AC26: 225 | AD26: 225 | AE26: g | AH26: =AUX!T26 -> 18 - Produção de canos e tubos de ferro e aço | AV26: 0
I27: - | J27: - | AA27: 75.1 | AB27: 112.5 | AC27: 225 | AD27: 225 | AE27: h | AH27: =AUX!T27 -> 19 - Produção de fundidos de ferro e aço | AV27: 0
I28: - | J28: - | AA28: 112.6 | AB28: 150 | AC28: 225 | AD28: 225 | AE28: i | AH28: =AUX!T29 -> 20 - Produção de canos e tubos de metais e de ligas de metais não ferrosos | AV28: 0
I29: - | J29: - | AA29: 150.1 | AB29: 225 | AC29: 225 | AD29: 225 | AE29: j | AH29: =AUX!T30 -> 21 - Fabricação de estruturas metálicas | AV29: 0
I30: - | J30: - | AA30: 225.1 | AB30: 300 | AC30: 300 | AD30: 300 | AE30: k | AH30: =AUX!T31 -> 22 - Fabricação de artefatos de trefilados de ferro e aço e de metais não ferrosos exclusive móveis | AV30: 0
I31: - | J31: - | AA31: 300.1 | AB31: Projetar SE Abrigada | AC31: Projetar SE Abrigada | AH31: =AUX!T32 -> 23 - Estamparia, funilaria e latoaria | AV31: 0
I32: - | J32: - | AH32: =AUX!T33 -> 24 - Serralheria, fabricação de tanques, reservatórios e outros recipientes metálicos e de artigos de caldeireiro | AV32: 0
I33: - | J33: - | AH33: =AUX!T34 -> 25 - Tempera e cementação de aço, recozimento de arames e serviços de galvanotécnica | AV33: 0
B34: TOTAL DE CARGA INSTALADA | I34: =IF((AB18>0),(IF((SUM(I9:I33))=0,"-",(SUM(I9:I33)))),"-") -> 234.464 | J34: =IF((SUM(J9:J33))=0,"-",(SUM(J9:J33))) -> 254.7091787 | AA34: =DADOS!F14 -> Proprietário Exemplo | AB34: =IF((AA34<>0),AA34,AC34) -> Proprietário Exemplo | AC34: Favor Informar o PROPRIETÁRIO do empreendimento!!! | AD34: 1 | AH34: =AUX!T35 -> 26 - Indústria mecânica
B35: TOTAL DE CARGA MOTRIZ | I35: =IF(((SUM(E9:E33))=0),"-",(IF(((SUM(E9:E33))=0),"-",((SUMPRODUCT(($C$9:$C$33=$AF$16)*($D$9:$D$33)*($E$9:$E$33)))+(SUMPRODUCT(($C$9:$C$33=$AF$17)*($D$9:$D$33)*($E$9:$E$33))))))) -> 74 | J35: =IF((I35="SEM"),"MOTORES","CV") -> CV | AA35: =DADOS!F23 -> Hotel Exemplo | AB35: =IF((AA35<>0),AA35,AC35) -> Hotel Exemplo | AC35: Favor Informar a IDENTIFICAÇÃO do referido empreendimento!!! | AD35: 2 | AH35: =AUX!T36 -> 27 - Fabricação de máquinas motrizes não elétricas e de equipamentos de transmissão para fins industriais, inclusive peças e acessórios
B36: OBSERVAÇÃO: | L36: PARECER ENERGISA: | AA36: =DADOS!F24 -> Rua do Hotel Exemplo | AB36: Rua do Hotel Exemplo | AC36: Favor informar o ENDEREÇO do referido empreendimento!!! | AD36: 3 | AH36: =AUX!T37 -> 28 - Fabricação de máquinas, aparelhos e equipamentos industriais para instalações hidráulicas, térmicas, de ventilação e refrigeração, equipadas ou não com motores elétricos, inclusive peças e acessórios
B37: =AC37 -> DADOS CONFIRMADOS PARA AVALIAÇÃO DA CONCESSIONÁRIA | AA37: 0 | AB37: OK | AC37: =VLOOKUP(AD37,AA37:AE59,5,FALSE) -> DADOS CONFIRMADOS PARA AVALIAÇÃO DA CONCESSIONÁRIA | AD37: =SUM(AD38:AD59) -> 0 | AE37: DADOS CONFIRMADOS PARA AVALIAÇÃO DA CONCESSIONÁRIA | AH37: =AUX!T38 -> 29 - Fabricação de produtos de padaria, confeitaria e pastelaria (inclusive panificadoras e similares)
AA38: 1 | AB38: CADASTRO DA UC | AC38: =IF((SUM(AA34:AA36)>0),AA38,0) -> 0 | AD38: =IF((AC38>0),AA38,0) -> 0 | AE38: FAVOR VERIFICAR OS DADOS CADASTRAIS DA UNIDADE | AH38: =AUX!T39 -> 30 - Fabricação de massas alimentícias e biscoitos
B39: OUTRAS CONSIDERAÇÕES: | AA39: 2 | AB39: DECLARAÇÃO DE CARGA | AC39: =IF((SUM(G9:G33)=0),AA39,0) -> 0 | AD39: =IF((SUM($AD$38:AD38)>0),0,AC39) -> 0 | AE39: FAVOR VERIFICAR A DECLARAÇÃO DA CARGA | AH39: =AUX!T40 -> 31 - Refinação e preparação de óleos e gorduras vegetais, produção de manteiga de cacau e de gordura de origem animal, destinadas à alimentação
AA40: 3 | AB40: RAMO DE ATIVIDADE | AC40: =IF((M5=0),AA40,0) -> 0 | AD40: =IF((SUM($AD$38:AD39)>0),0,AC40) -> 0 | AE40: FAVOR INFORMAR O RAMO DE ATIVIDADE DA UNIDADE A SER ATENDIDA | AH40: =AUX!T41 -> 32 - Fabricação de gelo
AA41: 4 | AB41: MÉTODO DE CALCULO | AC41: =IF((M6=0),AA41,0) -> 0 | AD41: =IF((SUM($AD$38:AD40)>0),0,AC41) -> 0 | AE41: FAVOR INFORMAR O MÉTODO DE CÁLCULO DA DEMANDA PARA A REFERIDA UNIDADE | AH41: =AUX!T42 -> 33 - Fabricação de rações balanceadas e de alimentos preparados para animais, inclusive farinha de carne, sangue, osso e peixe
AA42: 5 | AB42: TIPO DE LIGAÇÃO | AC42: =IF(AND(AJ12>0,M7<>AJ10),AA42,0) -> 0 | AD42: =IF((SUM($AD$38:AD41)>0),0,AC42) -> 0 | AE42: FAVOR INFORMAR O TIPO DE LIGAÇÃO PARA A REFERIDA UNIDADE | AH42: =AUX!T43 -> 34 - Indústria de bebidas
AA43: 6 | AB43: RAMAL DE LIGAÇÃO | AC43: =IF((Q7=0),AA43,0) -> 0 | AD43: =IF((SUM($AD$38:AD42)>0),0,AC43) -> 0 | AE43: FAVOR INFORMAR O RAMAL DE ENTRADA DA REFERIDA UNIDADE | AH43: =AUX!T44 -> 35 - Fabricação de aguardentes, licores e outras bebidas alcoólicas
AA44: 7 | AB44: FD | AC44: =IF(AND(M6=AI10,N9=0),AA44,0) -> 0 | AD44: =IF((SUM($AD$38:AD43)>0),0,AC44) -> 0 | AE44: FAVOR INFORMAR O FATOR DE DEMANDA | AH44: =AUX!T45 -> 36 - Fabricação de cervejas, chopes e malte
AA45: 8 | AB45: FP | AC45: =IF(AND(M6=AI10,P9=0),AA45,0) -> 0 | AD45: =IF((SUM($AD$38:AD44)>0),0,AC45) -> 0 | AE45: FAVOR INFORMAR O FATOR DE POTENCIA | AH45: =AUX!T46 -> 37 - Fabricação de bebidas não alcoólicas
B46: =DADOS!C56 -> ESPAÇO PARA INSERIR LOGOTIPO DA EMPRESA RESPONSAVEL PELA ELABORAÇÃO DO PROJETO | AA46: 9 | AB46: TRAFO | AC46: =IF((L13<AC18),AA46,0) -> 0 | AD46: =IF((SUM($AD$38:AD45)>0),0,AC46) -> 0 | AE46: POTENCIA DO TRANSFORMADOR NÃO INFORMADA OU INCOMPATIVEL COM A DEMANDA DO PROJETO. | AH46: =AUX!T47 -> 38 - Indústria de fumo
AA47: 10 | AB47: ISOLAMENTO | AC47: =IF((M13=0),AA47,0) -> 0 | AD47: =IF((SUM($AD$38:AD46)>0),0,AC47) -> 0 | AE47: FAVOR INFORMAR O TIPO DE ISOLAMENTO PARA OS CONDUTORES DE BAIXA TENSÃO | AH47: =AUX!T48 -> 39 - Fabricação de cigarros
AA48: 11 | AB48: GRUPO | AC48: =IF((L19=0),AA48,0) -> 0 | AD48: =IF((SUM($AD$38:AD47)>0),0,AC48) -> 0 | AE48: FAVOR INFORMAR A OPÇÃO TARIFÁRIA | AH48: =AUX!T49 -> 40 - Indústria de utilidade pública, irrigação, água, esgoto e saneamento
AA49: 12 | AB49: MODALIDADE | AC49: =IF(AND(L19=AO10,M19<>AQ11),AA49,0) -> 0 | AD49: =IF((SUM($AD$38:AD48)>0),0,AC49) -> 0 | AE49: FAVOR INFORMAR A MODALIDADE TARIFÁRIA / MODALIDADE TARIFÁRIA INFORMADA INCOMPATIVEL COM O GRUPO TARIFÁRIO | AH49: =AUX!T50 -> 41 - Distribuição de gás
AA50: 13 | AB50: GRUPO B | AC50: =IF((M19=0),AA50,0) -> 0 | AD50: =IF((SUM($AD$38:AD49)>0),0,AC50) -> 0 | AE50: MODALIDADE TARIFÁRIA INCOMPATIVEL COM O GRUPO TARIFÁRIO | AH50: =AUX!T51 -> 42 - Tratamento e distribuição de água
AA51: 14 | AB51: GRUPO B | AC51: =IF(AND(L19=AO10,L13>112.5),AA51,0) -> 0 | AD51: =IF((SUM($AD$38:AD50)>0),0,AC51) -> 0 | AE51: POTENCIA DO TRANSFORMADOR INCOMPATIVEL PARA OPÇÃO TARIFÁRIA PELO GRUPO B | AH51: =AUX!T53 -> 43 - Indústria de construção
AA52: 15 | AB52: CONVENCIONAL | AC52: =IF(AND(M19=AQ11,Q19>150),AA52,0) -> 0 | AD52: =IF((SUM($AD$38:AD51)>0),0,AC52) -> 0 | AE52: A OPÇÃO DE MODALIDADE TARIFÁRIA CONVENCIONAL ESTÁ LIMITADA A UMA DEMANDA CONTRATADA INFERIOR A 150kW | AH52: =AUX!T54 -> 44 - Construção Civil
AA53: 16 | AB53: FORA PONTA | AC53: =IF(AND(L19=AO9,Q19=0),AA53,0) -> 0 | AD53: =IF((SUM($AD$38:AD52)>0),0,AC53) -> 0 | AE53: FAVOR INFORMAR A DEMANDA A SER CONTRATADA NO HORÁRIO FORA DE PONTA / DEMANDA CONTRATADA INFORMADA INCOMPATIVEL COM O GRUPO OU MODALIDADE TARIFÁRIA | AH53: =AUX!T56 -> 45 - Pavimentação, terraplenagem e construção de estradas
AA54: 17 | AB54: FORA PONTA | AC54: =IF(AND(L19<>AO9,Q19>0),AA54,0) -> 0 | AD54: =IF((SUM($AD$38:AD53)>0),0,AC54) -> 0 | AE54: A CONTRATAÇÃO DE DEMANDA NO HORARIO FORA DE PONTA É EXCLUSIVO PARA CLIENTES TARIFADOS NO GRUPO A | AH54: =AUX!T58 -> 46 - Construção de obras de arte (viadutos, mirantes, etc.)
AA55: 18 | AB55: FORA PONTA | AC55: =IF(AND(L19=AO9,Q19<30),AA55,0) -> 0 | AD55: =IF((SUM($AD$38:AD54)>0),0,AC55) -> 0 | AE55: A DEMANDA MINIMA A SER CONTRADA DEVERÁ SER DE 30kW | AH55: =AUX!T59 -> 47 - Agricultura e criação animal
AA56: 19 | AB56: FORA PONTA | AC56: =IF(OR(AB19>L13,Q19>2500),AA56,0) -> 0 | AD56: =IF((SUM($AD$38:AD55)>0),0,AC56) -> 0 | AE56: A DEMANDA CONTRATADA PARA HORARIO FORA DE PONTA MAIOR QUE A POTENCIA DO TRANSFORMADOR OU QUE O LIMITE DE 2.500kW | AH56: =AUX!T60 -> 48 - Agricultura
AA57: 20 | AB57: PONTA | AC57: =IF(AND(M19<>AQ10,R19<>0),AA57,0) -> 0 | AD57: =IF((SUM($AD$38:AD56)>0),0,AC57) -> 0 | AE57: A CONTRATAÇÃO DE DEMANDA NO HORARIO DE PONTA É EXCLUSIVO PARA CLIENTES TARIFADOS NO GRUPO A NA MODALIDADE HS-AZUL | AH57: =AUX!T61 -> 49 - Agricultura (irrigação)
AA58: 21 | AB58: PONTA | AC58: =IF(AND(M19=AQ10,R19=0),AA58,0) -> 0 | AD58: =IF((SUM($AD$38:AD57)>0),0,AC58) -> 0 | AE58: FAVOR INFORMAR A DEMANDA NO HORARIO DE PONTA / DEMANDA CONTRATADA INCOMPATIVEL COM GRUPO OU MODALIDADE TARIFARIA | AH58: =AUX!T62 -> 50 - Criação animal exclusive bovinocultura (índices baseados na avicultura)
AA59: 22 | AB59: PONTA | AC59: =IF(OR(AC19>L13,R19>2500),AA59,0) -> 0 | AD59: =IF((SUM($AD$38:AD58)>0),0,AC59) -> 0 | AE59: A DEMANDA CONTRATADA PARA HORARIO DE PONTA MAIOR QUE A POTENCIA DO TRANSFORMADOR OU QUE O LIMITE DE 2.500kW | AH59: =AUX!T63 -> 51 - Criação animal - suinocultura
AH60: =AUX!T64 -> 52 - Bovinocultura
AH61: =AUX!T65 -> 53 - Florestamento e reflorestamento
AH62: =AUX!T66 -> 54 - Serviços de transporte
AH63: =AUX!T67 -> 55 - Transportes ferroviários
AH64: =AUX!T68 -> 56 - Transportes rodoviários de carga
AH65: =AUX!T69 -> 57 - Transportes urbanos de passageiros - inclusive metroviários
AH66: =AUX!T70 -> 58 - Serviços de comunicação
AH67: =AUX!T71 -> 59 - Telegrafia, telefone e correios
AH68: =AUX!T73 -> 60 - Radiodifusão e televisão
AH69: =AUX!T74 -> 61 - Serviços de alojamento e alimentação
AH70: =AUX!T75 -> 62 - Hotéis e motéis
AH71: =AUX!T76 -> 63 - Restaurantes e lanchonetes
AH72: =AUX!T77 -> 64 - Fabricação de máquinas, ferramentas, máquinas operatrizes e aparelhos industriais acoplados ou não a motores elétricos
AH73: =AUX!T78 -> 65 - Fabricação de peças, acessórios, utensílios e ferramentas para máquinas industriais
AH74: =AUX!T79 -> 66 - Fabricação de máquinas, aparelhos e materiais para agricultura, avicultura, apicultura, criação de outros pequenos animais e obtenção de produtos de origem animal, e para beneficiamento ou preparação de produtos agrícolas - peças e acessórios
AH75: =AUX!T80 -> 67 - Fabricação de cronômetros e relógios, elétricos ou não - inclusive a fabricação de peças
AH76: =AUX!T81 -> 68 - Reparação ou manutenção de máquinas, aparelhos e equipa- mentos industriais, agrícolas e de máquinas de terraplenagem
AH77: =AUX!T82 -> 69 - Indústria de material elétrico e de comunicações fabricação de aparelhos e utensílios elétricos para fins industriais e comerciais, inclusive peças e acessórios
AH78: =AUX!T83 -> 70 - Indústria de material de transporte
AH79: =AUX!T84 -> 71 - Reparação de veículos ferroviários
AH80: =AUX!T85 -> 72 - Fabricação de carrocerias para veículos automotores-exclusive chassis
AH81: =AUX!T86 -> 73 - Indústria de madeira
AH82: =AUX!T87 -> 74 - Desdobramento da madeira
AH83: =AUX!T88 -> 75 - Fabricação de chapas e placas de madeira, aglomerada ou prensada e de madeira compensada, revestida ou não com material plástico
AH84: =AUX!T89 -> 76 - Indústria de mobiliário, fabricação de móveis de madeira, vime e junco
AH85: =AUX!T90 -> 77 - Indústria de celulose, papel e papelão fabricação de papel, papelão, cartolina e cartão
AH86: =AUX!T91 -> 78 - Indústria de borracha recondicionamento de pneumáticos
AH87: =AUX!T92 -> 79 - Indústria de couros, peles e produtos similares curtimento e outras preparações de couros e peles - inclusive subprodutos
AH88: =AUX!T93 -> 80 - Indústria química
AH89: =AUX!T94 -> 81 - Produção de elementos Químicos e de produtos químicos inorgânicos, orgânicos, orgânicos inorgânicos, exclusive produtos derivados do processamento do petróleo, da rochas oleígenas, de carvão-de-pedra e de madeira
AH90: =AUX!T95 -> 82 - Fabricação de asfalto
AH91: =AUX!T96 -> 83 - Fabricação de resinas de fibras e de fios artificiais e sintéticos e de borracha e látex sintéticos
AH92: =AUX!T97 -> 84 - Produção de óleos, gorduras e ceras vegetais e animais, em banho de óleos, essenciais vegetais e outros produtos da destilação da madeira - exclusive refinação de produtos alimentares (destilaria de álcool proveniente de madeira)
AH93: =AUX!T98 -> 85 - Fabricação de concentrados aromáticos naturais, artificiais e sintéticos, inclusive mesclas
AH94: =AUX!T99 -> 86 - Fabricação de preparados para limpeza e polimento, desinfetantes, inseticidas, germicidas e fungicidas
AH95: =AUX!T100 -> 87 - Fabricação de adubos e fertilizantes e corretivos de solo
AH96: =AUX!T101 -> 88 - Indústria de produtos farmacêuticos e veterinários
AH97: =AUX!T102 -> 89 - Indústria de perfumaria, sabões e velas fabricação de sabões, detergentes e glicerinas
AH98: =AUX!T103 -> 90 - Indústria de produtos de matérias plásticas
AH99: =AUX!T104 -> 91 - Fabricação de artigos de material plástico para usos - exclusive embalagem e acondicionamento
AH100: =AUX!T105 -> 92 - Indústria têxtil
AH101: =AUX!T106 -> 93 - Beneficiamento de fibras têxteis vegetais, artificiais e de materiais têxteis de origem animal, fabricação de estopa de materiais para estofados e recuperação de resíduos têxteis
AH102: =AUX!T107 -> 94 - Fiação e Tecelagem
AH103: =AUX!T108 -> 95 - Malharia e fabricação de tecidos elásticos
AH104: =AUX!T109 -> 96 - Indústria de vestuário, calçados e artefatos de tecidos
AH105: =AUX!T110 -> 97 - Confecções de roupas e agasalhos
AH106: =AUX!T111 -> 98 - Fabricação de calçados
AH107: =AUX!T112 -> 99 - Indústria de produtos alimentares
AH108: =AUX!T113 -> 100 - Beneficiamento de café, cereais e produtos afins
AH109: =AUX!T115 -> 101 - Moagem de trigo
AH110: =AUX!T116 -> 102 - Torrefação e moagem de café
AH111: =AUX!T117 -> 103 - Fabricação de produtos de milho, exclusive óleos
AH112: =AUX!T118 -> 104 - Beneficiamento, moagem, torrefação e fabricação de produtos alimentares diversos de origem vegetal, não especificados ou não classificados
AH113: =AUX!T119 -> 105 - Refeições conservadas, conservas de frutas, legumes e outros vegetais, preparação de especiarias e condimentos e fabricação de doces, exclusive de confeitaria
AH114: =AUX!T120 -> 106 - Abate de animais
AH115: =AUX!T122 -> 107 - Preparação de conservas de carne - inclusive subprodutos - processados em matadouros e frigoríficos
AH116: =AUX!T124 -> 108 - Preparação de conservas de carne e produtos de salsicharia, não processados em matadouros e frigoríficos
AH117: =AUX!T125 -> 109 - Preparação de leite e fabricação de produtos de laticínios
AH118: =AUX!T128 -> 110 - Fabricação de açúcar
AH119: =AUX!T129 -> 111 - Fabricação de balas, caramelos, pastilhas, drops, bombons, chocolates, etc. - inclusive goma de mascar
AH120: =AUX!T130 -> 112 - Serviços de reparação, manutenção e conservação
AH121: =AUX!T131 -> 113 - Reparação, manutenção e conservação de máquinas e de uso doméstico - exclusive máquinas de costura
AH122: =AUX!T132 -> 114 - Reparação de veículos - exclusive embarcações, aeronaves e veículos ferroviários
AH123: =AUX!T133 -> 115 - Manutenção e conservação de veículos em geral
AH124: =AUX!T134 -> 116 - Serviços pessoais
AH125: =AUX!T135 -> 117 - Serviços de higiene - barbearias, saunas, lavanderias, etc.
AH126: =AUX!T136 -> 118 - Hospitais e casas de saúde
AH127: =AUX!T138 -> 119 - Estabelecimentos de ensino tradicional (1º e 2° graus)
AH128: =AUX!T139 -> 120 - Estabelecimentos de ensino superior - Faculdade
AH129: =AUX!T140 -> 121 - Estabelecimentos de ensino integrado - unidades integradas
AH130: =AUX!T141 -> 122 - Serviços comerciais
AH131: =AUX!T142 -> 123 - Serviços auxiliares do comércio de mercadorias, inclusive de distribuição
AH132: =AUX!T143 -> 124 - Armazéns gerais e trapiches
AH133: =AUX!T144 -> 125 - Serviço de processamento de dados
AH134: =AUX!T145 -> 126 - Serviços de contabilidade e despachante
AH135: =AUX!T146 -> 127 - Serviços de diversões
AH136: =AUX!T147 -> 128 - Entidades financeiras
AH137: =AUX!T148 -> 129 - Bancos comerciais e caixas econômicas
AH138: =AUX!T149 -> 130 - Comércio atacadista
AH139: =AUX!T150 -> 131 - Comércio atacadista de ferragens e produtos metalúrgicos
AH140: =AUX!T151 -> 132 - Comércio atacadista de combustíveis e lubrificantes (terminal)
AH141: =AUX!T152 -> 133 - Comércio atacadista de cereais e farinhas
AH142: =AUX!T153 -> 134 - Comércio atacadista de produtos alimentícios diversos
AH143: =AUX!T154 -> 135 - Comércio atacadista de mercadorias em geral com produtos alimentícios
AH144: =AUX!T155 -> 136 - Comércio varejista
AH145: =AUX!T156 -> 137 - Comércio varejista de veículos
AH146: =AUX!T157 -> 138 - Comércio varejista de veículos e acessórios
AH147: =AUX!T158 -> 139 - Comércio varejista de móveis, artigos de habitação e de utilidade doméstica
AH148: =AUX!T159 -> 140 - Comércio varejista de combustíveis e lubrificantes, exclusive gás liquefeito de petróleo
AH149: =AUX!T160 -> 141 - Supermercados
AH150: =AUX!T161 -> 142 - Cooperativas
AH151: =AUX!T162 -> 143 - Cooperativas de beneficiamento, industrialização e comercialização
AH152: =AUX!T163 -> 144 - Cooperativas de consumo de bens e serviços
AH153: =AUX!T164 -> 145 - Fundações, entidades e associações de fins não lucrativos
AH154: =AUX!T165 -> 146 - Fundações beneficentes, religiosas e assistenciais
AH155: =AUX!T166 -> 147 - Fundações culturais, científicas e educacionais
AH156: =AUX!T167 -> 148 - Associações beneficentes, religiosas e assistenciais
AH157: =AUX!T168 -> 149 - Associações esportivas e recreativas
AH158: =AUX!T169 -> 150 - Administração pública direta ou Autárquica

Sheet TAB (hidden)
AL1: ÁREA ÚTIL (m²) | AM1: DEMANDA (kW) | AN1: ÁREA ÚTIL (m²) | AP1: 0 | AR1: Nº Apto | AS1: F. Mult.
AL2: 0 | AM2: 15 | AN2: 0.39 | AR2: 1 | AS2: *
AL3: 16 | AM3: 20 | AN3: 0.51 | AR3: 2 | AS3: *
B4: CONFIRMAR? | C4: ATIVIDADE | D4: TIPO DE CARGA | E4: TENSÃO | F4: LIGAÇÃO | G4: CLASSE | H4: lista resid | I4: lista n-resid | J4: CALCULO DA DEMANDA | K4: MENSAGEM | L4: ISOLAMENTO | M4: CATEGORIA DE MEDIÇÃO | N4: CABO XLPE | O4: DJ | P4: PE | AC4: NP | AD4: NP | AE4: PE | AF4: DJ | AG4: DJ | AI4: PE | AJ4: Nº F | AL4: 21 | AM4: 25 | AN4: 0.62 | AR4: 3 | AS4: *
A5: / 220 | B5: SIM | C5: Residencia | D5: Ilum./Tomadas | E5: 220V | F5: MONOFÁSICA | G5: Residencial | H5: Apartamento | I5: Cant. de Obras | J5: CALCULAR UTILIZANDO FATOR DE DEMANDA E FATOR DE POTENCIA CONFORME NDU 001 | K5: PREENCHA TODOS OS CAMPOS: CLASSE DE ATENDIMENTO; TIPO DE UC E RAMO DE ATIVIDADE. | L5: XLPE /EPR/HEPR | M5: M1 | N5: 1#6(6)-XLPE/EPR/HEPR OU 1#6(6)-PVC | O5: 30/32 | P5: 6 | AC5: 6 | AD5: 6 | AE5: 6 | AF5: 32 | AG5: 30 | AH5: 0.22 | AI5: 6 | AJ5: 1 | AK5: 25 | AL5: 26 | AM5: 30 | AN5: 0.73 | AR5: 4 | AS5: 3.88
A6: / (380 * √3) | B6: NÃO | C6: Hospitais e Similares | D6: Aquecimento | E6: 380V | F6: TRIFÁSICA | G6: Não Residencial | H6: Casa | I6: Condominio | J6: CALCULAR UTILIZANDO FATOR DE DEMANDA E FATOR DE POTENCIA DEFINIDOS PELO PROJETISTA | K6: AGUARDANDO A DECLARAÇÃO DAS CARGAS | L6: PVC | M6: M2 | N6: 1#10(10)-XLPE/EPR/HEPR OU 1#10(10)-PVC | O6: 50 | P6: 10 | AC6: 10 | AD6: 10 | AE6: 10 | AF6: 50 | AG6: 40 | AH6: 0.22 | AI6: 10 | AJ6: 1 | AK6: 25 | AL6: 31 | AM6: 35 | AN6: 0.84 | AR6: 5 | AS6: 4.84
C7: Hóteis e Similares | D7: Tomadas Especiais | G7: Irrigante | H7: Quitinete | I7: Loja | K7: CARGA INSTALADA SUPERIOR A 75kW - O ATENDIMENTO DEVERÁ SER FEITO EM MT COM TRANSFORMADOR PARTICULAR | M7: M3 | N7: 1#16(16)-XLPE/EPR/HEPR OU 1#16(16)-PVC | O7: 70 | P7: 10 | AC7: 16 | AD7: 16 | AE7: 10 | AF7: 70 | AG7: 63 | AH7: 0.22 | AI7: 16 | AJ7: 1 | AK7: 25 | AL7: 36 | AM7: 40 | AN7: 0.95 | AR7: 6 | AS7: 5.8
C8: Escritorio | D8: Fogão/Forno Elétrico | H8: Flat | I8: Sala Comercial | K8: DEMANDA SUPERIOR A 75kW - NECESSITA TRANSFORMADOR PARTICULAR . | M8: T1 | N8: 3#6(6)-XLPE/EPR/HEPR OU 3#10(10)-PVC | O8: 40 | P8: 6 | AC8: 10 | AD8: 10 | AE8: 6 | AF8: 40 | AG8: 30 | AH8: 0.658 | AI8: 25 | AJ8: 3 | AK8: 50 | AL8: 41 | AM8: 45 | AN8: 1.05 | AR8: 7 | AS8: 6.76
C9: Escolas e Similares | D9: Refrigeração | H9: Outros | I9: Outros | K9: CARGA MOTRIZ SUPERIOR A 30 CV E CARGA INSTALADA SUPERIOR A 50kW - O ATENDIMENTO DEVERÁ SER FEITO EM MT COM TRANSFORMADOR PARTICULAR | M9: T2 | N9: 3#10(10)-XLPE/EPR/HEPR OU 3#10(10)-PVC | O9: 50 | P9: 10 | AC9: 10 | AD9: 10 | AE9: 10 | AF9: 50 | AG9: 40 | AH9: 0.658 | AI9: 35 | AJ9: 3 | AK9: 32 | AL9: 46 | AM9: 50 | AN9: 1.16 | AR9: 8 | AS9: 7.72
C10: Quarteis e Semelhantes | D10: Raios-X | I10: Irrigação | K10: UC DENTRO DOS LIMITES PARA ATENDIMENTO EM BT. | M10: T3 | N10: 3#16(16)-XLPE/EPR/HEPR OU 3#16(16)-PVC | O10: 70 | P10: 10 | AC10: 25 | AD10: 25 | AE10: 10 | AF10: 70 | AG10: 63 | AH10: 0.658 | AI10: 50 | AJ10: 3 | AK10: 40 | AL10: 51 | AM10: 55 | AN10: 1.26 | AR10: 9 | AS10: 8.68
C11: Outros | D11: Maq. Solda | K11: A LIGAÇÃO DESTA UC DEVERÁ SER TRIFÁSICA. | M11: T4 | N11: 3#25(25)-XLPE/EPR/HEPR OU 3#25(25)-PVC | O11: 100 | P11: 16 | AC11: 35 | AD11: 35 | AE11: 16 | AF11: 100 | AG11: 100 | AH11: 0.658 | AI11: 70 | AJ11: 3 | AK11: 50 | AL11: 56 | AM11: 60 | AN11: 1.36 | AR11: 10 | AS11: 9.64
D12: Motriz Monofásica | J12: =IF(OR((#REF!<>$K$10),(#REF!<>$K$11),(#REF!<>$K$12)),1,0) ->  | K12: PARA A LIGAÇÃO DA REFERIDA UC FICA A OPÇÃO POR SER MONOFÁSICA OU TRIFÁSICA. | M12: T5 | N12: 3#50(35)-XLPE/EPR/HEPR OU 3#50(35)-PVC | O12: 125 | P12: 25 | AC12: 35 | AD12: 70 | AE12: 25 | AF12: 125 | AG12: 125 | AH12: 0.658 | AI12: 95 | AJ12: 3 | AK12: 65 | AL12: 61 | AM12: 65 | AN12: 1.47 | AR12: 11 | AS12: 10.42
D13: Motriz Trifásica | K13: Informe a Classe | M13: >75kW | N13: 3#70(35)-XLPE/EPR/HEPR OU 3#70(35)-PVC | O13: 175 | P13: 50 | AC13: - | AD13: - | AE13: - | AF13: - | AG13: - | AH13: - | AI13: - | AJ13: 3 | AL13: 66 | AM13: 70 | AN13: 1.57 | AR13: 12 | AS13: 11.2
K14: Informe Tipo de UC | AC14: 11 | AD14: 12 | AE14: 13 | AF14: 14 | AG14: 15 | AH14: 16 | AI14: 17 | AJ14: 18 | AL14: 71 | AM14: 75 | AN14: 1.67 | AR14: 13 | AS14: 11.98
K15: - 1F + 1N | AL15: 76 | AM15: 80 | AN15: 1.76 | AR15: 14 | AS15: 12.76
F16: ELETROD. | K16: - 3F + 1N | AL16: 81 | AM16: 85 | AN16: 1.86 | AR16: 15 | AS16: 13.54
F17: PVC | K17: UNIDADES NÃO INFORMADAS | AL17: 86 | AM17: 90 | AN17: 1.96 | AR17: 16 | AS17: 14.32
F18: Aço Galv. | K18: ERRO!!! | AL18: 91 | AM18: 95 | AN18: 2.06 | AR18: 17 | AS18: 15.1
F19: A definir | K19: FAVOR CONFIRMAR OU NÃO OS DIMENSIONAMENTOS SUGERIDOS | AL19: 96 | AM19: 100 | AN19: 2.16 | AR19: 18 | AS19: 15.88
J20: =IF((#REF!=$K$21),1,0) ->  | K20: FAVOR INFORMAR O(S) NOVO(S) DIMENSIONAMENTO(S) | AL20: 101 | AM20: 110 | AN20: 2.35 | AR20: 19 | AS20: 16.66
K21: TODOS OS DIMENSIONAMENTOS FORAM CONFIRMADOS | AL21: 111 | AM21: 120 | AN21: 2.54 | AR21: 20 | AS21: 17.44
K22: TIPO DE LIGAÇÃO INCOMPATIVEL COM A DEMANDA | AL22: 121 | AM22: 130 | AN22: 2.73 | AR22: 21 | AS22: 18.04
K23: # | AL23: 131 | AM23: 140 | AN23: 2.91 | AR23: 22 | AS23: 18.65
K24: ( | AL24: 141 | AM24: 150 | AN24: 3.1 | AR24: 23 | AS24: 19.25
K25: )mm² -0,6/1kV- | AL25: 151 | AM25: 160 | AN25: 3.28 | AR25: 24 | AS25: 19.86
K26: - 0,6/1kV - | AL26: 161 | AM26: 170 | AN26: 3.47 | AR26: 25 | AS26: 20.46
K27: INFORME OS DADOS REFERENTE AOS CONDUTORES | AL27: 171 | AM27: 180 | AN27: 3.65 | AR27: 26 | AS27: 21.06
K28: INFORME O DISJUNTOR ADOTADO | AL28: 181 | AM28: 190 | AN28: 3.83 | AR28: 27 | AS28: 21.67
K29: INFORME A SEÇÃO DO ATERRAMENTO | AL29: 191 | AM29: 200 | AN29: 4.01 | AR29: 28 | AS29: 22.27
K30: CABO DE COBRE NU - # | AL30: 201 | AM30: 220 | AN30: 4.36 | AR30: 29 | AS30: 22.88
K31: FAVOR DECLARAR AS CARGAS DO CONJUNTO ANTERIOR DE UCs!!! | AL31: 221 | AM31: 240 | AN31: 4.72 | AR31: 30 | AS31: 23.48
K32: PARA QUE ESTAS CARGAS SEJAM ACEITAS, FAVOR DECLARAR AS CARGAS DO CONJUNTO ANTERIOR DE UCs!!! | AL32: 241 | AM32: 260 | AN32: 5.07 | AR32: 31 | AS32: 24.08
K33: - | AL33: 261 | AM33: 280 | AN33: 5.42 | AR33: 32 | AS33: 24.69
K34: )mm² | AL34: 281 | AM34: 300 | AN34: 5.76 | AR34: 33 | AS34: 25.29
AL35: 301 | AM35: 350 | AN35: 6.61 | AR35: 34 | AS35: 25.9
AL36: 351 | AM36: 400 | AN36: 7.45 | AR36: 35 | AS36: 26.5
AL37: 401 | AM37: 450 | AN37: 8.28 | AR37: 36 | AS37: 27.1
C38: Tensão | D38: Ramal de Entrada | E38: Isolamento | F38: Aterramento | G38: Nº de | H38: Eletroduto | I38: Disjuntor | AL38: 451 | AM38: 500 | AN38: 9.1 | AR38: 37 | AS38: 27.71
C39: (V) | D39: (mm²) | F39: (mm²) | G39: Hastes | H39: (mm) | I39: (A) | AL39: 501 | AM39: 550 | AN39: 9.91 | AR39: 38 | AS39: 28.31
C40: 380/220 | D40: 3#16(16) | E40: XLPE | F40: 10 | G40: 3 | H40: 1x40 | I40: 70 | AL40: 551 | AM40: 600 | AN40: 10.71 | AR40: 39 | AS40: 28.92
AL41: 601 | AM41: 650 | AN41: 11.51 | AR41: 40 | AS41: 29.52
AL42: 651 | AM42: 700 | AN42: 12.3 | AR42: 41 | AS42: 30.12
AL43: 701 | AM43: 800 | AN43: 13.86 | AR43: 42 | AS43: 30.73
AL44: 801 | AM44: 900 | AN44: 15.4 | AR44: 43 | AS44: 31.33
AL45: 901 | AM45: 1000 | AN45: 16.93 | AR45: 44 | AS45: 31.94
AR46: 45 | AS46: 32.54
AR47: 46 | AS47: 33.1
AR48: 47 | AS48: 33.66
AR49: 48 | AS49: 34.22
AR50: 49 | AS50: 34.78
AR51: 50 | AS51: 35.34
AR52: 51 | AS52: 35.9
AR53: 52 | AS53: 36.46
AR54: 53 | AS54: 37.02
AR55: 54 | AS55: 37.58
AR56: 55 | AS56: 38.14
AR57: 56 | AS57: 38.7
AR58: 57 | AS58: 39.26
AR59: 58 | AS59: 39.82
AR60: 59 | AS60: 40.38
AR61: 60 | AS61: 40.94
AR62: 61 | AS62: 41.5
AR63: 62 | AS63: 42.06
AR64: 63 | AS64: 42.62
AR65: 64 | AS65: 43.18
AR66: 65 | AS66: 43.74
AR67: 66 | AS67: 44.3
AR68: 67 | AS68: 44.86
AR69: 68 | AS69: 45.42
AR70: 69 | AS70: 45.98
AR71: 70 | AS71: 46.54
AR72: 71 | AS72: 47.1
AR73: 72 | AS73: 47.66
AR74: 73 | AS74: 48.22
AR75: 74 | AS75: 48.78
AR76: 75 | AS76: 49.34
AR77: 76 | AS77: 49.9
AR78: 77 | AS78: 50.46
AR79: 78 | AS79: 51.58
AR80: 79 | AS80: 51.58
AR81: 80 | AS81: 52.14
AR82: 81 | AS82: 52.7
AR83: 82 | AS83: 53.26
AR84: 83 | AS84: 53.82
AR85: 84 | AS85: 54.38
AR86: 85 | AS86: 54.94
AR87: 86 | AS87: 55.5
AR88: 87 | AS88: 56.06
AR89: 88 | AS89: 56.62
AR90: 89 | AS90: 57.18
AR91: 90 | AS91: 57.74
AR92: 91 | AS92: 58.3
AR93: 92 | AS93: 58.86
AR94: 93 | AS94: 59.42
AR95: 94 | AS95: 59.98
AR96: 95 | AS96: 60.54
AR97: 96 | AS97: 61.1
AR98: 97 | AS98: 61.66
AR99: 98 | AS99: 62.22
AR100: 99 | AS100: 62.78
AR101: 100 | AS101: 63.34
AR102: 101 | AS102: 63.59
AR103: 102 | AS103: 63.84
AR104: 103 | AS104: 64.09
AR105: 104 | AS105: 64.34
AR106: 105 | AS106: 64.59
AR107: 106 | AS107: 64.84
AR108: 107 | AS108: 65.09
AR109: 108 | AS109: 65.34
AR110: 109 | AS110: 65.59
AR111: 110 | AS111: 65.84
AR112: 111 | AS112: 66.09
AR113: 112 | AS113: 66.34
AR114: 113 | AS114: 66.59
AR115: 114 | AS115: 66.84
AR116: 115 | AS116: 67.09
AR117: 116 | AS117: 67.34
AR118: 117 | AS118: 67.59
AR119: 118 | AS119: 67.84
AR120: 119 | AS120: 68.09
AR121: 120 | AS121: 68.34
AR122: 121 | AS122: 68.54
AR123: 122 | AS123: 68.84
AR124: 123 | AS124: 69.09
AR125: 124 | AS125: 69.34
AR126: 125 | AS126: 69.59
AR127: 126 | AS127: 69.79
AR128: 127 | AS128: 69.99
AR129: 128 | AS129: 70.19
AR130: 129 | AS130: 70.39
AR131: 130 | AS131: 70.59
AR132: 131 | AS132: 70.79
AR133: 132 | AS133: 70.99
AR134: 133 | AS134: 71.19
AR135: 134 | AS135: 71.39
AR136: 135 | AS136: 71.59
AR137: 136 | AS137: 71.79
AR138: 137 | AS138: 71.99
AR139: 138 | AS139: 72.19
AR140: 139 | AS140: 72.39
AR141: 140 | AS141: 72.59
AR142: 141 | AS142: 72.79
AR143: 142 | AS143: 72.99
AR144: 143 | AS144: 73.19
AR145: 144 | AS145: 73.39
AR146: 145 | AS146: 73.59
AR147: 146 | AS147: 73.79
AR148: 147 | AS148: 73.99
AR149: 148 | AS149: 74.19
AR150: 149 | AS150: 74.39
AR151: 150 | AS151: 74.59
AR152: 151 | AS152: 74.74
AR153: 152 | AS153: 74.89
AR154: 153 | AS154: 75.04
AR155: 154 | AS155: 75.19
AR156: 155 | AS156: 75.34
AR157: 156 | AS157: 75.49
AR158: 157 | AS158: 75.64
AR159: 158 | AS159: 75.79
AR160: 159 | AS160: 75.94
AR161: 160 | AS161: 76.09
AR162: 161 | AS162: 76.24
AR163: 162 | AS163: 76.39
AR164: 163 | AS164: 76.54
AR165: 164 | AS165: 76.69
AR166: 165 | AS166: 76.84
AR167: 166 | AS167: 76.99
AR168: 167 | AS168: 77.14
AR169: 168 | AS169: 77.29
AR170: 169 | AS170: 77.44
AR171: 170 | AS171: 77.59
AR172: 171 | AS172: 77.74
AR173: 172 | AS173: 77.84
AR174: 173 | AS174: 78.04
AR175: 174 | AS175: 78.19
AR176: 175 | AS176: 78.34
AR177: 176 | AS177: 78.44
AR178: 177 | AS178: 78.54
AR179: 178 | AS179: 78.64
AR180: 179 | AS180: 78.74
AR181: 180 | AS181: 78.84
AR182: 181 | AS182: 78.94
AR183: 182 | AS183: 79.04
AR184: 183 | AS184: 79.14
AR185: 184 | AS185: 79.24
AR186: 185 | AS186: 79.34
AR187: 186 | AS187: 79.44
AR188: 187 | AS188: 79.54
AR189: 188 | AS189: 79.64
AR190: 189 | AS190: 79.74
AR191: 190 | AS191: 79.84
AR192: 191 | AS192: 79.94
AR193: 192 | AS193: 80.04
AR194: 193 | AS194: 80.14
AR195: 194 | AS195: 80.24
AR196: 195 | AS196: 80.34
AR197: 196 | AS197: 80.44
AR198: 197 | AS198: 80.54
AR199: 198 | AS199: 80.64
AR200: 199 | AS200: 80.74
... 101 more rows

Sheet AUX (hidden)
T2: 1 | U2: 2 | V2: 3 | W2: 4 | X2: 5 | Y2: 6 | Z2: 7
C3: TC | D3: DISJUNTOR | E3: XLPE | F3: PVC | G3: ELET | H3: ELET | I3: POSTE | J3: ELO | K3: MEDIDOR | L3: 12 | N3: COD. | O3: Ramo de Atividade | P3: Intervalo Carga Instalada | Q3: FD Máx | R3: FD Típico | S3: FCTípico | U3: 1 | V3: 2 | W3: 3 | X3: 1 | Y3: 2 | Z3: 3
A4: 1#5 | B4: 5 | C4: - | D4: 30/32 | E4: 1#6(6) | F4: 1#6(6) | G4: 25 | H4: 25 | I4: 300 | J4: 0,5H | K4: Monofásico | L4: - | P4: (kW) | Q4: (%) | R4: (%) | S4: (%)
A5: 1#10 | B5: 10 | C5: - | D5: 50 | E5: 1#10(10) | F5: 1#10(10) | G5: 25 | H5: 25 | I5: 300 | J5: 1H | K5: Monofásico | L5: - | N5: 1 | O5: Indústria de extração e tratamento de minerais | Q5: 70 | R5: 43 | S5: 26 | T5: =CONCATENATE(N5," - ",O5) -> 1 - Indústria de extração e tratamento de minerais | U5: =Q5 -> 70 | V5: =IF((N6=N5),Q6,0) -> 0 | W5: =IF((N5=N7),Q5,0) -> 0 | X5: =IF((U5=0),0,(IF((P5=0),DEMANDA!$AB$18,(VALUE((RIGHT(P5,3))))))) -> 234.464 | Y5: =IF(OR(V5=0,DEMANDA!$AB$18<=X5),0,(DEMANDA!$AB$18-X5)) -> 0 | Z5: 0 | AA5: =VALUE(X6) -> 500
A6: 1#15 | B6: 15 | C6: - | D6: 70 | E6: 1#16(16) | F6: 1#16(16) | G6: 25 | H6: 25 | I6: 300 | J6: 2H | K6: Monofásico | L6: - | N6: 2 | O6: Extração de minérios de ferro | P6: ≤500 | Q6: 54 | R6: 36 | S6: 34 | T6: 2 - Extração de minérios de ferro | U6: =Q6 -> 54 | V6: =IF((N7=N6),Q7,0) -> 67 | W6: =IF((N6=N8),Q6,0) -> 0 | X6: =IF((U6=0),0,(IF((P6=0),DEMANDA!$AB$18,(VALUE((RIGHT(P6,3))))))) -> 500 | Y6: =IF(OR(V6=0,DEMANDA!$AB$18<=X6),0,(DEMANDA!$AB$18-X6)) -> 0 | Z6: 0
A7: 3#5 | B7: 5 | C7: - | D7: 40 | E7: 3#6(6) | F7: 3#6(6) | G7: 32 | H7: 32 | I7: 300 | J7: 0,5H | K7: Trifásico 120A | L7: - | N7: =N6 -> 2 | P7: >500 | Q7: 67 | R7: 49 | S7: 35 | T7: 2 - | U7: 67 | V7: 0 | W7: 0 | X7: =IF((U7=0),0,(IF((P7=0),DEMANDA!$AB$18,(VALUE((RIGHT(P7,3))))))) -> 500 | Y7: =IF(OR(V7=0,DEMANDA!$AB$18<=X7),0,(DEMANDA!$AB$18-X7)) -> 0 | Z7: 0
A8: 3#10 | B8: 10 | C8: - | D8: 40 | E8: 3#6(6) | F8: 3#6(6) | G8: 32 | H8: 32 | I8: 300 | J8: 1H | K8: Trifásico 120A | L8: - | N8: 3 | O8: Extração de minérios de metais não ferrosos | Q8: 85 | R8: 78 | S8: 76 | T8: 3 - Extração de minérios de metais não ferrosos | U8: 85 | V8: 0 | W8: 0 | X8: =IF((U8=0),0,(IF((P8=0),DEMANDA!$AB$18,(VALUE((RIGHT(P8,3))))))) -> 234.464 | Y8: =IF(OR(V8=0,DEMANDA!$AB$18<=X8),0,(DEMANDA!$AB$18-X8)) -> 0 | Z8: 0
A9: 3#15 | B9: 15 | C9: - | D9: 40 | E9: 3#6(6) | F9: 3#6(6) | G9: 32 | H9: 32 | I9: 300 | J9: 1H | K9: Trifásico 120A | L9: - | N9: 4 | O9: Extração de minerais para fabricação de adubos fertilizantes e para elaboração de outros produtos químicos | Q9: 54 | R9: 37 | S9: 29 | T9: 4 - Extração de minerais para fabricação de adubos fertilizantes e para elaboração de outros produtos químicos | U9: 54 | V9: 0 | W9: 0 | X9: =IF((U9=0),0,(IF((P9=0),DEMANDA!$AB$18,(VALUE((RIGHT(P9,3))))))) -> 234.464 | Y9: =IF(OR(V9=0,DEMANDA!$AB$18<=X9),0,(DEMANDA!$AB$18-X9)) -> 0 | Z9: 0
A10: 3#30 | B10: 30 | C10: - | D10: 50 | E10: 3#10(10) | F10: 3#10(10) | G10: 32 | H10: 32 | I10: 300 | J10: 2H | K10: Trifásico 120A | L10: - | N10: 5 | O10: Extração de pedras e outros minerais para construção | Q10: 67 | R10: 49 | S10: 16 | T10: 5 - Extração de pedras e outros minerais para construção | U10: 67 | V10: 0 | W10: 0 | X10: =IF((U10=0),0,(IF((P10=0),DEMANDA!$AB$18,(VALUE((RIGHT(P10,3))))))) -> 234.464 | Y10: =IF(OR(V10=0,DEMANDA!$AB$18<=X10),0,(DEMANDA!$AB$18-X10)) -> 0 | Z10: 0
A11: 3#45 | B11: 45 | C11: - | D11: 70 | E11: 3#16(16) | F11: 3#25(25) | G11: 40 | H11: 40 | I11: 300 | J11: 3H | K11: Trifásico 120A | L11: - | N11: 6 | O11: Extração de pedras e outros minerais não metálicos | Q11: 86 | R11: 43 | S11: 14 | T11: 6 - Extração de pedras e outros minerais não metálicos | U11: 86 | V11: 0 | W11: 0 | X11: =IF((U11=0),0,(IF((P11=0),DEMANDA!$AB$18,(VALUE((RIGHT(P11,3))))))) -> 234.464 | Y11: =IF(OR(V11=0,DEMANDA!$AB$18<=X11),0,(DEMANDA!$AB$18-X11)) -> 0 | Z11: 0
A12: 3#75 | B12: 75 | C12: - | D12: 125 | E12: 3#50(25) | F12: 3#70(35) | G12: 65 | H12: 80 | I12: 300 | J12: 5H | K12: Trifásico 200A | L12: - | N12: 7 | O12: Aparelhamento de pedras para construção e execução de trabalhos em mármore, ardósia, granito e outras pedras | Q12: 63 | R12: 55 | S12: 30 | T12: 7 - Aparelhamento de pedras para construção e execução de trabalhos em mármore, ardósia, granito e outras pedras | U12: 63 | V12: 0 | W12: 0 | X12: =IF((U12=0),0,(IF((P12=0),DEMANDA!$AB$18,(VALUE((RIGHT(P12,3))))))) -> 234.464 | Y12: =IF(OR(V12=0,DEMANDA!$AB$18<=X12),0,(DEMANDA!$AB$18-X12)) -> 0 | Z12: 0
A13: 3#112,5 | B13: 112.5 | C13: - | D13: 175 | E13: 3#70(35) | F13: 3#95(50) | G13: 80 | H13: 80 | I13: 300 | J13: 6K | K13: Trifásico 200A | L13: - | N13: 8 | O13: Britamento de pedras | P13: ≤130 | Q13: 57 | R13: 39 | S13: 11 | T13: 8 - Britamento de pedras | U13: 57 | V13: 78 | W13: 0 | X13: =IF((U13=0),0,(IF((P13=0),DEMANDA!$AB$18,(VALUE((RIGHT(P13,3))))))) -> 130 | Y13: =IF(OR(V13=0,DEMANDA!$AB$18<=X13),0,(DEMANDA!$AB$18-X13)) -> 104.464 | Z13: 0
A14: 3#150 | B14: 150 | C14: 200:5 | D14: 225 | E14: 3#120(70) | F14: 3#150(95) | G14: 100 | H14: 100 | I14: 1000 | J14: 8K | K14: Medição Trif. Indireta | L14: - | N14: =N13 -> 8 | P14: >130 | Q14: 78 | R14: 54 | S14: 17 | T14: 8 - | U14: 78 | V14: 0 | W14: 0 | X14: =IF((U14=0),0,(IF((P14=0),DEMANDA!$AB$18,(VALUE((RIGHT(P14,3))))))) -> 130 | Y14: =IF(OR(V14=0,DEMANDA!$AB$18<=X14),0,(DEMANDA!$AB$18-X14)) -> 0 | Z14: 0
A15: 3#225 | B15: 225 | C15: 250:5 | D15: 350 | E15: 3#240(120) | F15: 2x{3#120(70) } | G15: 100 | H15: 2 x 100 | I15: 1000 | J15: 10K | K15: Medição Trif. Indireta | L15: - | N15: 9 | O15: Fabricação de cal | Q15: 91 | R15: 52 | S15: 18 | T15: 9 - Fabricação de cal | U15: 91 | V15: 0 | W15: 0 | X15: =IF((U15=0),0,(IF((P15=0),DEMANDA!$AB$18,(VALUE((RIGHT(P15,3))))))) -> 234.464 | Y15: =IF(OR(V15=0,DEMANDA!$AB$18<=X15),0,(DEMANDA!$AB$18-X15)) -> 0 | Z15: 0
A16: 3#300 | B16: 300 | C16: 400:5 | D16: 450 | E16: 2x{3#120(70) } | F16: 2x{3#150(95) } | G16: 2 x 100 | H16: 2 x 100 | I16: 1000 | J16: 15K | K16: Medição Trif. Indireta | L16: - | N16: 10 | O16: Fabricação de telhas, tijolos e outros artigos de barro cozido exclusive cerâmica | P16: ≤160 | Q16: 97 | R16: 71 | S16: 13 | T16: 10 - Fabricação de telhas, tijolos e outros artigos de barro cozido exclusive cerâmica | U16: 97 | V16: 91 | W16: 0 | X16: =IF((U16=0),0,(IF((P16=0),DEMANDA!$AB$18,(VALUE((RIGHT(P16,3))))))) -> 160 | Y16: =IF(OR(V16=0,DEMANDA!$AB$18<=X16),0,(DEMANDA!$AB$18-X16)) -> 74.464 | Z16: 0
N17: =N16 -> 10 | P17: >160 | Q17: 91 | R17: 60 | S17: 30 | T17: 10 - | U17: 91 | V17: 0 | W17: 0 | X17: =IF((U17=0),0,(IF((P17=0),DEMANDA!$AB$18,(VALUE((RIGHT(P17,3))))))) -> 160 | Y17: =IF(OR(V17=0,DEMANDA!$AB$18<=X17),0,(DEMANDA!$AB$18-X17)) -> 0 | Z17: 0
N18: 11 | O18: Fabricação de material cerâmico - exclusive de barro cozido | P18: ≤100 | Q18: 96 | R18: 76 | S18: 10 | T18: 11 - Fabricação de material cerâmico - exclusive de barro cozido | U18: 96 | V18: 93 | W18: 0 | X18: =IF((U18=0),0,(IF((P18=0),DEMANDA!$AB$18,(VALUE((RIGHT(P18,3))))))) -> 100 | Y18: =IF(OR(V18=0,DEMANDA!$AB$18<=X18),0,(DEMANDA!$AB$18-X18)) -> 134.464 | Z18: 0
B19: 2AWG | C19: Cabo nu | D19: =CONCATENATE(C19," - ",B19) -> Cabo nu - 2AWG | E19: Potência [kVA] | F19: Tensão [kV] | G19: Corrente [A] | I19: Elo fusível | N19: =N18 -> 11 | P19: >100 | Q19: 93 | R19: 66 | S19: 39 | T19: 11 - | U19: 93 | V19: 0 | W19: 0 | X19: =IF((U19=0),0,(IF((P19=0),DEMANDA!$AB$18,(VALUE((RIGHT(P19,3))))))) -> 100 | Y19: =IF(OR(V19=0,DEMANDA!$AB$18<=X19),0,(DEMANDA!$AB$18-X19)) -> 0 | Z19: 0
B20: 1/0AWG | C20: Cabo nu | D20: =CONCATENATE(C20," - ",B20) -> Cabo nu - 1/0AWG | E20: 5 | F20: 7.97 | G20: 0.63 | I20: 0,5H | N20: 12 | O20: Fabricação de cimento | Q20: 66 | R20: 64 | S20: 54 | T20: 12 - Fabricação de cimento | U20: 66 | V20: 0 | W20: 0 | X20: =IF((U20=0),0,(IF((P20=0),DEMANDA!$AB$18,(VALUE((RIGHT(P20,3))))))) -> 234.464 | Y20: =IF(OR(V20=0,DEMANDA!$AB$18<=X20),0,(DEMANDA!$AB$18-X20)) -> 0 | Z20: 0
B21: 50 | C21: Cabo Protegido | D21: Cabo Protegido - 50 | E21: 10 | F21: 7.97 | G21: 1.25 | I21: 1H | N21: 13 | O21: Fabricação de peças, ornatos e estruturas de cimento, gesso e amianto | Q21: 37 | R21: 23 | S21: 26 | T21: 13 - Fabricação de peças, ornatos e estruturas de cimento, gesso e amianto | U21: 37 | V21: 0 | W21: 0 | X21: =IF((U21=0),0,(IF((P21=0),DEMANDA!$AB$18,(VALUE((RIGHT(P21,3))))))) -> 234.464 | Y21: =IF(OR(V21=0,DEMANDA!$AB$18<=X21),0,(DEMANDA!$AB$18-X21)) -> 0 | Z21: 0
B22: 120 | C22: Cabo Protegido | D22: Cabo Protegido - 120 | E22: 15 | F22: 7.97 | G22: 1.88 | I22: 2H | N22: 14 | O22: Beneficiamento e preparação de minerais não metálicos, não associados à extração | Q22: 78 | R22: 46 | S22: 51 | T22: 14 - Beneficiamento e preparação de minerais não metálicos, não associados à extração | U22: 78 | V22: 0 | W22: 0 | X22: =IF((U22=0),0,(IF((P22=0),DEMANDA!$AB$18,(VALUE((RIGHT(P22,3))))))) -> 234.464 | Y22: =IF(OR(V22=0,DEMANDA!$AB$18<=X22),0,(DEMANDA!$AB$18-X22)) -> 0 | Z22: 0
B23: 185 | C23: Cabo Protegido | D23: Cabo Protegido - 185 | E23: 25 | F23: 7.97 | G23: 3.14 | I23: 3H | N23: 15 | O23: Indústria metalúrgica | Q23: 65 | R23: 43 | S23: 30 | T23: 15 - Indústria metalúrgica | U23: 65 | V23: 0 | W23: 0 | X23: =IF((U23=0),0,(IF((P23=0),DEMANDA!$AB$18,(VALUE((RIGHT(P23,3))))))) -> 234.464 | Y23: =IF(OR(V23=0,DEMANDA!$AB$18<=X23),0,(DEMANDA!$AB$18-X23)) -> 0 | Z23: 0
E24: 5 | F24: 13.8 | G24: 0.21 | I24: 0,5H | N24: 16 | O24: Produção de ferro gusa | Q24: 83 | R24: 67 | S24: 79 | T24: 16 - Produção de ferro gusa | U24: 83 | V24: 0 | W24: 0 | X24: =IF((U24=0),0,(IF((P24=0),DEMANDA!$AB$18,(VALUE((RIGHT(P24,3))))))) -> 234.464 | Y24: =IF(OR(V24=0,DEMANDA!$AB$18<=X24),0,(DEMANDA!$AB$18-X24)) -> 0 | Z24: 0
E25: 10 | F25: 13.8 | G25: 0.42 | I25: 1H | N25: 17 | O25: Produção de laminados de aço - inclusive de ferro ligas | Q25: 75 | R25: 46 | S25: 24 | T25: 17 - Produção de laminados de aço - inclusive de ferro ligas | U25: 75 | V25: 0 | W25: 0 | X25: =IF((U25=0),0,(IF((P25=0),DEMANDA!$AB$18,(VALUE((RIGHT(P25,3))))))) -> 234.464 | Y25: =IF(OR(V25=0,DEMANDA!$AB$18<=X25),0,(DEMANDA!$AB$18-X25)) -> 0 | Z25: 0
E26: 15 | F26: 13.8 | G26: 0.63 | I26: 1H | N26: 18 | O26: Produção de canos e tubos de ferro e aço | Q26: 37 | R26: 30 | S26: 40 | T26: 18 - Produção de canos e tubos de ferro e aço | U26: 37 | V26: 0 | W26: 0 | X26: =IF((U26=0),0,(IF((P26=0),DEMANDA!$AB$18,(VALUE((RIGHT(P26,3))))))) -> 234.464 | Y26: =IF(OR(V26=0,DEMANDA!$AB$18<=X26),0,(DEMANDA!$AB$18-X26)) -> 0 | Z26: 0
E27: 30 | F27: 13.8 | G27: 1.26 | I27: 2H | N27: 19 | O27: Produção de fundidos de ferro e aço | P27: ≤150 | Q27: 50 | R27: 33 | S27: 19 | T27: 19 - Produção de fundidos de ferro e aço | U27: 50 | V27: 80 | W27: 0 | X27: =IF((U27=0),0,(IF((P27=0),DEMANDA!$AB$18,(VALUE((RIGHT(P27,3))))))) -> 150 | Y27: =IF(OR(V27=0,DEMANDA!$AB$18<=X27),0,(DEMANDA!$AB$18-X27)) -> 84.464 | Z27: 0 | AA27: =IF((X27>DEMANDA!$AB$18),1,0) -> 0
E28: 45 | F28: 13.8 | G28: 1.88 | I28: 3H | N28: =N27 -> 19 | P28: >150 | Q28: 80 | R28: 55 | S28: 33 | T28: 19 - | U28: 80 | V28: 0 | W28: 0 | X28: =IF((U28=0),0,(IF((P28=0),DEMANDA!$AB$18,(VALUE((RIGHT(P28,3))))))) -> 150 | Y28: =IF(OR(V28=0,DEMANDA!$AB$18<=X28),0,(DEMANDA!$AB$18-X28)) -> 0 | Z28: 0
E29: 75 | F29: 13.8 | G29: 3.14 | I29: 5H | N29: 20 | O29: Produção de canos e tubos de metais e de ligas de metais não ferrosos | Q29: 54 | R29: 45 | S29: 33 | T29: 20 - Produção de canos e tubos de metais e de ligas de metais não ferrosos | U29: 54 | V29: 0 | W29: 0 | X29: =IF((U29=0),0,(IF((P29=0),DEMANDA!$AB$18,(VALUE((RIGHT(P29,3))))))) -> 234.464 | Y29: =IF(OR(V29=0,DEMANDA!$AB$18<=X29),0,(DEMANDA!$AB$18-X29)) -> 0 | Z29: 0
E30: 112.5 | F30: 13.8 | G30: 4.71 | I30: 6K | N30: 21 | O30: Fabricação de estruturas metálicas | Q30: 74 | R30: 39 | S30: 13 | T30: 21 - Fabricação de estruturas metálicas | U30: 74 | V30: 0 | W30: 0 | X30: =IF((U30=0),0,(IF((P30=0),DEMANDA!$AB$18,(VALUE((RIGHT(P30,3))))))) -> 234.464 | Y30: =IF(OR(V30=0,DEMANDA!$AB$18<=X30),0,(DEMANDA!$AB$18-X30)) -> 0 | Z30: 0
E31: 150 | F31: 13.8 | G31: 6.28 | I31: 8K | N31: 22 | O31: Fabricação de artefatos de trefilados de ferro e aço e de metais não ferrosos exclusive móveis | Q31: 68 | R31: 53 | S31: 19 | T31: 22 - Fabricação de artefatos de trefilados de ferro e aço e de metais não ferrosos exclusive móveis | U31: 68 | V31: 0 | W31: 0 | X31: =IF((U31=0),0,(IF((P31=0),DEMANDA!$AB$18,(VALUE((RIGHT(P31,3))))))) -> 234.464 | Y31: =IF(OR(V31=0,DEMANDA!$AB$18<=X31),0,(DEMANDA!$AB$18-X31)) -> 0 | Z31: 0
E32: 225 | F32: 13.8 | G32: 9.41 | I32: 10K | N32: 23 | O32: Estamparia, funilaria e latoaria | Q32: 65 | R32: 26 | S32: 22 | T32: 23 - Estamparia, funilaria e latoaria | U32: 65 | V32: 0 | W32: 0 | X32: =IF((U32=0),0,(IF((P32=0),DEMANDA!$AB$18,(VALUE((RIGHT(P32,3))))))) -> 234.464 | Y32: =IF(OR(V32=0,DEMANDA!$AB$18<=X32),0,(DEMANDA!$AB$18-X32)) -> 0 | Z32: 0
E33: 250 | F33: 13.8 | G33: 10.46 | I33: 10K | N33: 24 | O33: Serralheria, fabricação de tanques, reservatórios e outros recipientes metálicos e de artigos de caldeireiro | Q33: 48 | R33: 27 | S33: 23 | T33: 24 - Serralheria, fabricação de tanques, reservatórios e outros recipientes metálicos e de artigos de caldeireiro | U33: 48 | V33: 0 | W33: 0 | X33: =IF((U33=0),0,(IF((P33=0),DEMANDA!$AB$18,(VALUE((RIGHT(P33,3))))))) -> 234.464 | Y33: =IF(OR(V33=0,DEMANDA!$AB$18<=X33),0,(DEMANDA!$AB$18-X33)) -> 0 | Z33: 0
E34: 300 | F34: 13.8 | G34: 12.55 | I34: 15K | N34: 25 | O34: Tempera e cementação de aço, recozimento de arames e serviços de galvanotécnica | Q34: 83 | R34: 52 | S34: 29 | T34: 25 - Tempera e cementação de aço, recozimento de arames e serviços de galvanotécnica | U34: 83 | V34: 0 | W34: 0 | X34: =IF((U34=0),0,(IF((P34=0),DEMANDA!$AB$18,(VALUE((RIGHT(P34,3))))))) -> 234.464 | Y34: =IF(OR(V34=0,DEMANDA!$AB$18<=X34),0,(DEMANDA!$AB$18-X34)) -> 0 | Z34: 0
E35: 400 | F35: 13.8 | G35: 16.73 | I35: 15K | N35: 26 | O35: Indústria mecânica | Q35: 47 | R35: 29 | S35: 31 | T35: 26 - Indústria mecânica | U35: 47 | V35: 0 | W35: 0 | X35: =IF((U35=0),0,(IF((P35=0),DEMANDA!$AB$18,(VALUE((RIGHT(P35,3))))))) -> 234.464 | Y35: =IF(OR(V35=0,DEMANDA!$AB$18<=X35),0,(DEMANDA!$AB$18-X35)) -> 0 | Z35: 0
E36: 500 | F36: 13.8 | G36: 20.92 | I36: 25K | N36: 27 | O36: Fabricação de máquinas motrizes não elétricas e de equipamentos de transmissão para fins industriais, inclusive peças e acessórios | Q36: 20 | R36: 17 | S36: 50 | T36: 27 - Fabricação de máquinas motrizes não elétricas e de equipamentos de transmissão para fins industriais, inclusive peças e acessórios | U36: 20 | V36: 0 | W36: 0 | X36: =IF((U36=0),0,(IF((P36=0),DEMANDA!$AB$18,(VALUE((RIGHT(P36,3))))))) -> 234.464 | Y36: =IF(OR(V36=0,DEMANDA!$AB$18<=X36),0,(DEMANDA!$AB$18-X36)) -> 0 | Z36: 0
E37: 750 | F37: 13.8 | G37: 31.38 | I37: 40K | N37: 28 | O37: Fabricação de máquinas, aparelhos e equipamentos industriais para instalações hidráulicas, térmicas, de ventilação e refrigeração, equipadas ou não com motores elétricos, inclusive peças e acessórios | Q37: 31 | R37: 27 | S37: 22 | T37: =CONCATENATE(N37," - ",O37) -> 28 - Fabricação de máquinas, aparelhos e equipamentos industriais para instalações hidráulicas, térmicas, de ventilação e refrigeração, equipadas ou não com motores elétricos, inclusive peças e acessórios | U37: 31 | V37: 0 | W37: 0 | X37: =IF((U37=0),0,(IF((P37=0),DEMANDA!$AB$18,(VALUE((RIGHT(P37,3))))))) -> 234.464 | Y37: =IF(OR(V37=0,DEMANDA!$AB$18<=X37),0,(DEMANDA!$AB$18-X37)) -> 0 | Z37: 0
E38: 1000 | F38: 13.8 | G38: 41.84 | I38: 50K | N38: 29 | O38: Fabricação de produtos de padaria, confeitaria e pastelaria (inclusive panificadoras e similares) | Q38: 82 | R38: 74 | S38: 28 | T38: 29 - Fabricação de produtos de padaria, confeitaria e pastelaria (inclusive panificadoras e similares) | U38: 82 | V38: 0 | W38: 0 | X38: =IF((U38=0),0,(IF((P38=0),DEMANDA!$AB$18,(VALUE((RIGHT(P38,3))))))) -> 234.464 | Y38: =IF(OR(V38=0,DEMANDA!$AB$18<=X38),0,(DEMANDA!$AB$18-X38)) -> 0 | Z38: 0
E39: -- | F39: -- | G39: -- | I39: -- | N39: 30 | O39: Fabricação de massas alimentícias e biscoitos | Q39: 61 | R39: 54 | S39: 57 | T39: 30 - Fabricação de massas alimentícias e biscoitos | U39: 61 | V39: 0 | W39: 0 | X39: =IF((U39=0),0,(IF((P39=0),DEMANDA!$AB$18,(VALUE((RIGHT(P39,3))))))) -> 234.464 | Y39: =IF(OR(V39=0,DEMANDA!$AB$18<=X39),0,(DEMANDA!$AB$18-X39)) -> 0 | Z39: 0
N40: 31 | O40: Refinação e preparação de óleos e gorduras vegetais, produção de manteiga de cacau e de gordura de origem animal, destinadas à alimentação | Q40: 89 | R40: 38 | S40: 39 | T40: 31 - Refinação e preparação de óleos e gorduras vegetais, produção de manteiga de cacau e de gordura de origem animal, destinadas à alimentação | U40: 89 | V40: 0 | W40: 0 | X40: =IF((U40=0),0,(IF((P40=0),DEMANDA!$AB$18,(VALUE((RIGHT(P40,3))))))) -> 234.464 | Y40: =IF(OR(V40=0,DEMANDA!$AB$18<=X40),0,(DEMANDA!$AB$18-X40)) -> 0 | Z40: 0
N41: 32 | O41: Fabricação de gelo | Q41: 91 | R41: 75 | S41: 41 | T41: 32 - Fabricação de gelo | U41: 91 | V41: 0 | W41: 0 | X41: =IF((U41=0),0,(IF((P41=0),DEMANDA!$AB$18,(VALUE((RIGHT(P41,3))))))) -> 234.464 | Y41: =IF(OR(V41=0,DEMANDA!$AB$18<=X41),0,(DEMANDA!$AB$18-X41)) -> 0 | Z41: 0
N42: 33 | O42: Fabricação de rações balanceadas e de alimentos preparados para animais, inclusive farinha de carne, sangue, osso e peixe | Q42: 85 | R42: 45 | S42: 29 | T42: 33 - Fabricação de rações balanceadas e de alimentos preparados para animais, inclusive farinha de carne, sangue, osso e peixe | U42: 85 | V42: 0 | W42: 0 | X42: =IF((U42=0),0,(IF((P42=0),DEMANDA!$AB$18,(VALUE((RIGHT(P42,3))))))) -> 234.464 | Y42: =IF(OR(V42=0,DEMANDA!$AB$18<=X42),0,(DEMANDA!$AB$18-X42)) -> 0 | Z42: 0
N43: 34 | O43: Indústria de bebidas | Q43: 62 | R43: 41 | S43: 20 | T43: 34 - Indústria de bebidas | U43: 62 | V43: 0 | W43: 0 | X43: =IF((U43=0),0,(IF((P43=0),DEMANDA!$AB$18,(VALUE((RIGHT(P43,3))))))) -> 234.464 | Y43: =IF(OR(V43=0,DEMANDA!$AB$18<=X43),0,(DEMANDA!$AB$18-X43)) -> 0 | Z43: 0
N44: 35 | O44: Fabricação de aguardentes, licores e outras bebidas alcoólicas | Q44: 68 | R44: 49 | S44: 43 | T44: 35 - Fabricação de aguardentes, licores e outras bebidas alcoólicas | U44: 68 | V44: 0 | W44: 0 | X44: =IF((U44=0),0,(IF((P44=0),DEMANDA!$AB$18,(VALUE((RIGHT(P44,3))))))) -> 234.464 | Y44: =IF(OR(V44=0,DEMANDA!$AB$18<=X44),0,(DEMANDA!$AB$18-X44)) -> 0 | Z44: 0
N45: 36 | O45: Fabricação de cervejas, chopes e malte | Q45: 50 | R45: 27 | S45: 27 | T45: 36 - Fabricação de cervejas, chopes e malte | U45: 50 | V45: 0 | W45: 0 | X45: =IF((U45=0),0,(IF((P45=0),DEMANDA!$AB$18,(VALUE((RIGHT(P45,3))))))) -> 234.464 | Y45: =IF(OR(V45=0,DEMANDA!$AB$18<=X45),0,(DEMANDA!$AB$18-X45)) -> 0 | Z45: 0
N46: 37 | O46: Fabricação de bebidas não alcoólicas | Q46: 57 | R46: 47 | S46: 69 | T46: 37 - Fabricação de bebidas não alcoólicas | U46: 57 | V46: 0 | W46: 0 | X46: =IF((U46=0),0,(IF((P46=0),DEMANDA!$AB$18,(VALUE((RIGHT(P46,3))))))) -> 234.464 | Y46: =IF(OR(V46=0,DEMANDA!$AB$18<=X46),0,(DEMANDA!$AB$18-X46)) -> 0 | Z46: 0
N47: 38 | O47: Indústria de fumo | Q47: 96 | R47: 72 | S47: 32 | T47: 38 - Indústria de fumo | U47: 96 | V47: 0 | W47: 0 | X47: =IF((U47=0),0,(IF((P47=0),DEMANDA!$AB$18,(VALUE((RIGHT(P47,3))))))) -> 234.464 | Y47: =IF(OR(V47=0,DEMANDA!$AB$18<=X47),0,(DEMANDA!$AB$18-X47)) -> 0 | Z47: 0
N48: 39 | O48: Fabricação de cigarros | Q48: 43 | R48: 39 | S48: 59 | T48: 39 - Fabricação de cigarros | U48: 43 | V48: 0 | W48: 0 | X48: =IF((U48=0),0,(IF((P48=0),DEMANDA!$AB$18,(VALUE((RIGHT(P48,3))))))) -> 234.464 | Y48: =IF(OR(V48=0,DEMANDA!$AB$18<=X48),0,(DEMANDA!$AB$18-X48)) -> 0 | Z48: 0
N49: 40 | O49: Indústria de utilidade pública, irrigação, água, esgoto e saneamento | Q49: 95 | R49: 84 | S49: 51 | T49: 40 - Indústria de utilidade pública, irrigação, água, esgoto e saneamento | U49: 95 | V49: 0 | W49: 0 | X49: =IF((U49=0),0,(IF((P49=0),DEMANDA!$AB$18,(VALUE((RIGHT(P49,3))))))) -> 234.464 | Y49: =IF(OR(V49=0,DEMANDA!$AB$18<=X49),0,(DEMANDA!$AB$18-X49)) -> 0 | Z49: 0
N50: 41 | O50: Distribuição de gás | Q50: 57 | R50: 51 | S50: 40 | T50: 41 - Distribuição de gás | U50: 57 | V50: 0 | W50: 0 | X50: =IF((U50=0),0,(IF((P50=0),DEMANDA!$AB$18,(VALUE((RIGHT(P50,3))))))) -> 234.464 | Y50: =IF(OR(V50=0,DEMANDA!$AB$18<=X50),0,(DEMANDA!$AB$18-X50)) -> 0 | Z50: 0
N51: 42 | O51: Tratamento e distribuição de água | P51: ≤100 | Q51: 100 | R51: 92 | S51: 30 | T51: 42 - Tratamento e distribuição de água | U51: 100 | V51: 95 | W51: 0 | X51: =IF((U51=0),0,(IF((P51=0),DEMANDA!$AB$18,(VALUE((RIGHT(P51,3))))))) -> 100 | Y51: =IF(OR(V51=0,DEMANDA!$AB$18<=X51),0,(DEMANDA!$AB$18-X51)) -> 134.464 | Z51: 0
N52: =N51 -> 42 | P52: >100 | Q52: 95 | R52: 75 | S52: 72 | T52: 42 - | U52: 95 | V52: 0 | W52: 0 | X52: =IF((U52=0),0,(IF((P52=0),DEMANDA!$AB$18,(VALUE((RIGHT(P52,3))))))) -> 100 | Y52: =IF(OR(V52=0,DEMANDA!$AB$18<=X52),0,(DEMANDA!$AB$18-X52)) -> 0 | Z52: 0
N53: 43 | O53: Indústria de construção | Q53: 59 | R53: 36 | S53: 32 | T53: 43 - Indústria de construção | U53: 59 | V53: 0 | W53: 0 | X53: =IF((U53=0),0,(IF((P53=0),DEMANDA!$AB$18,(VALUE((RIGHT(P53,3))))))) -> 234.464 | Y53: =IF(OR(V53=0,DEMANDA!$AB$18<=X53),0,(DEMANDA!$AB$18-X53)) -> 0 | Z53: 0
N54: 44 | O54: Construção Civil | P54: ≤190 | Q54: 80 | R54: 39 | S54: 31 | T54: 44 - Construção Civil | U54: 80 | V54: 30 | W54: 0 | X54: =IF((U54=0),0,(IF((P54=0),DEMANDA!$AB$18,(VALUE((RIGHT(P54,3))))))) -> 190 | Y54: =IF(OR(V54=0,DEMANDA!$AB$18<=X54),0,(DEMANDA!$AB$18-X54)) -> 44.464 | Z54: 0
N55: =N54 -> 44 | P55: >190 | Q55: 30 | R55: 14 | S55: 33 | T55: 44 - | U55: 30 | V55: 0 | W55: 0 | X55: =IF((U55=0),0,(IF((P55=0),DEMANDA!$AB$18,(VALUE((RIGHT(P55,3))))))) -> 190 | Y55: =IF(OR(V55=0,DEMANDA!$AB$18<=X55),0,(DEMANDA!$AB$18-X55)) -> 0 | Z55: 0
N56: 45 | O56: Pavimentação, terraplenagem e construção de estradas | P56: ≤200 | Q56: 90 | R56: 65 | S56: 21 | T56: 45 - Pavimentação, terraplenagem e construção de estradas | U56: 90 | V56: 79 | W56: 0 | X56: =IF((U56=0),0,(IF((P56=0),DEMANDA!$AB$18,(VALUE((RIGHT(P56,3))))))) -> 200 | Y56: =IF(OR(V56=0,DEMANDA!$AB$18<=X56),0,(DEMANDA!$AB$18-X56)) -> 34.464 | Z56: 0
N57: =N56 -> 45 | P57: >200 | Q57: 79 | R57: 52 | S57: 41 | T57: 45 - | U57: 79 | V57: 0 | W57: 0 | X57: =IF((U57=0),0,(IF((P57=0),DEMANDA!$AB$18,(VALUE((RIGHT(P57,3))))))) -> 200 | Y57: =IF(OR(V57=0,DEMANDA!$AB$18<=X57),0,(DEMANDA!$AB$18-X57)) -> 0 | Z57: 0
N58: 46 | O58: Construção de obras de arte (viadutos, mirantes, etc.) | Q58: 14 | R58: 11 | S58: 32 | T58: 46 - Construção de obras de arte (viadutos, mirantes, etc.) | U58: 14 | V58: 0 | W58: 0 | X58: =IF((U58=0),0,(IF((P58=0),DEMANDA!$AB$18,(VALUE((RIGHT(P58,3))))))) -> 234.464 | Y58: =IF(OR(V58=0,DEMANDA!$AB$18<=X58),0,(DEMANDA!$AB$18-X58)) -> 0 | Z58: 0
N59: 47 | O59: Agricultura e criação animal | Q59: 77 | R59: 43 | S59: 33 | T59: 47 - Agricultura e criação animal | U59: 77 | V59: 0 | W59: 0 | X59: =IF((U59=0),0,(IF((P59=0),DEMANDA!$AB$18,(VALUE((RIGHT(P59,3))))))) -> 234.464 | Y59: =IF(OR(V59=0,DEMANDA!$AB$18<=X59),0,(DEMANDA!$AB$18-X59)) -> 0 | Z59: 0
N60: 48 | O60: Agricultura | Q60: 91 | R60: 44 | S60: 30 | T60: 48 - Agricultura | U60: 91 | V60: 0 | W60: 0 | X60: =IF((U60=0),0,(IF((P60=0),DEMANDA!$AB$18,(VALUE((RIGHT(P60,3))))))) -> 234.464 | Y60: =IF(OR(V60=0,DEMANDA!$AB$18<=X60),0,(DEMANDA!$AB$18-X60)) -> 0 | Z60: 0
N61: 49 | O61: Agricultura (irrigação) | Q61: 97 | R61: 54 | S61: 19 | T61: 49 - Agricultura (irrigação) | U61: 97 | V61: 0 | W61: 0 | X61: =IF((U61=0),0,(IF((P61=0),DEMANDA!$AB$18,(VALUE((RIGHT(P61,3))))))) -> 234.464 | Y61: =IF(OR(V61=0,DEMANDA!$AB$18<=X61),0,(DEMANDA!$AB$18-X61)) -> 0 | Z61: 0
N62: 50 | O62: Criação animal exclusive bovinocultura (índices baseados na avicultura) | Q62: 99 | R62: 61 | S62: 70 | T62: 50 - Criação animal exclusive bovinocultura (índices baseados na avicultura) | U62: 99 | V62: 0 | W62: 0 | X62: =IF((U62=0),0,(IF((P62=0),DEMANDA!$AB$18,(VALUE((RIGHT(P62,3))))))) -> 234.464 | Y62: =IF(OR(V62=0,DEMANDA!$AB$18<=X62),0,(DEMANDA!$AB$18-X62)) -> 0 | Z62: 0
N63: 51 | O63: Criação animal - suinocultura | Q63: 91 | R63: 52 | S63: 24 | T63: 51 - Criação animal - suinocultura | U63: 91 | V63: 0 | W63: 0 | X63: =IF((U63=0),0,(IF((P63=0),DEMANDA!$AB$18,(VALUE((RIGHT(P63,3))))))) -> 234.464 | Y63: =IF(OR(V63=0,DEMANDA!$AB$18<=X63),0,(DEMANDA!$AB$18-X63)) -> 0 | Z63: 0
N64: 52 | O64: Bovinocultura | Q64: 39 | R64: 22 | S64: 31 | T64: 52 - Bovinocultura | U64: 39 | V64: 0 | W64: 0 | X64: =IF((U64=0),0,(IF((P64=0),DEMANDA!$AB$18,(VALUE((RIGHT(P64,3))))))) -> 234.464 | Y64: =IF(OR(V64=0,DEMANDA!$AB$18<=X64),0,(DEMANDA!$AB$18-X64)) -> 0 | Z64: 0
N65: 53 | O65: Florestamento e reflorestamento | Q65: 63 | R65: 32 | S65: 26 | T65: 53 - Florestamento e reflorestamento | U65: 63 | V65: 0 | W65: 0 | X65: =IF((U65=0),0,(IF((P65=0),DEMANDA!$AB$18,(VALUE((RIGHT(P65,3))))))) -> 234.464 | Y65: =IF(OR(V65=0,DEMANDA!$AB$18<=X65),0,(DEMANDA!$AB$18-X65)) -> 0 | Z65: 0
N66: 54 | O66: Serviços de transporte | Q66: 56 | R66: 28 | S66: 41 | T66: 54 - Serviços de transporte | U66: 56 | V66: 0 | W66: 0 | X66: =IF((U66=0),0,(IF((P66=0),DEMANDA!$AB$18,(VALUE((RIGHT(P66,3))))))) -> 234.464 | Y66: =IF(OR(V66=0,DEMANDA!$AB$18<=X66),0,(DEMANDA!$AB$18-X66)) -> 0 | Z66: 0
N67: 55 | O67: Transportes ferroviários | Q67: 66 | R67: 42 | S67: 49 | T67: 55 - Transportes ferroviários | U67: 66 | V67: 0 | W67: 0 | X67: =IF((U67=0),0,(IF((P67=0),DEMANDA!$AB$18,(VALUE((RIGHT(P67,3))))))) -> 234.464 | Y67: =IF(OR(V67=0,DEMANDA!$AB$18<=X67),0,(DEMANDA!$AB$18-X67)) -> 0 | Z67: 0
N68: 56 | O68: Transportes rodoviários de carga | Q68: 24 | R68: 16 | S68: 34 | T68: 56 - Transportes rodoviários de carga | U68: 24 | V68: 0 | W68: 0 | X68: =IF((U68=0),0,(IF((P68=0),DEMANDA!$AB$18,(VALUE((RIGHT(P68,3))))))) -> 234.464 | Y68: =IF(OR(V68=0,DEMANDA!$AB$18<=X68),0,(DEMANDA!$AB$18-X68)) -> 0 | Z68: 0
N69: 57 | O69: Transportes urbanos de passageiros - inclusive metroviários | Q69: 78 | R69: 26 | S69: 41 | T69: =CONCATENATE(N69," - ",O69) -> 57 - Transportes urbanos de passageiros - inclusive metroviários | U69: 78 | V69: 0 | W69: 0 | X69: =IF((U69=0),0,(IF((P69=0),DEMANDA!$AB$18,(VALUE((RIGHT(P69,3))))))) -> 234.464 | Y69: =IF(OR(V69=0,DEMANDA!$AB$18<=X69),0,(DEMANDA!$AB$18-X69)) -> 0 | Z69: 0
N70: 58 | O70: Serviços de comunicação | Q70: 81 | R70: 43 | S70: 46 | T70: 58 - Serviços de comunicação | U70: =Q70 -> 81 | V70: =IF((N71=N70),Q71,0) -> 0 | W70: =IF((N70=N72),Q70,0) -> 0 | X70: =IF((U70=0),0,(IF((P70=0),DEMANDA!$AB$18,(VALUE((RIGHT(P70,3))))))) -> 234.464 | Y70: =IF(OR(V70=0,DEMANDA!$AB$18<=X70),0,(DEMANDA!$AB$18-X70)) -> 0 | Z70: 0
N71: 59 | O71: Telegrafia, telefone e correios | P71: <150 | Q71: 78 | R71: 40 | S71: 45 | T71: 59 - Telegrafia, telefone e correios | U71: 78 | V71: 92 | W71: 0 | X71: =IF((U71=0),0,(IF((P71=0),DEMANDA!$AB$18,(VALUE((RIGHT(P71,3))))))) -> 150 | Y71: =IF(OR(V71=0,DEMANDA!$AB$18<=X71),0,(DEMANDA!$AB$18-X71)) -> 84.464 | Z71: 0
N72: =N71 -> 59 | P72: >150 | Q72: 92 | R72: 44 | S72: 55 | T72: 59 - | U72: 92 | V72: 0 | W72: 0 | X72: =IF((U72=0),0,(IF((P72=0),DEMANDA!$AB$18,(VALUE((RIGHT(P72,3))))))) -> 150 | Y72: =IF(OR(V72=0,DEMANDA!$AB$18<=X72),0,(DEMANDA!$AB$18-X72)) -> 0 | Z72: 0
N73: 60 | O73: Radiodifusão e televisão | Q73: 73 | R73: 44 | S73: 37 | T73: 60 - Radiodifusão e televisão | U73: 73 | V73: 0 | W73: 0 | X73: =IF((U73=0),0,(IF((P73=0),DEMANDA!$AB$18,(VALUE((RIGHT(P73,3))))))) -> 234.464 | Y73: =IF(OR(V73=0,DEMANDA!$AB$18<=X73),0,(DEMANDA!$AB$18-X73)) -> 0 | Z73: 0
N74: 61 | O74: Serviços de alojamento e alimentação | Q74: 81 | R74: 48 | S74: 46 | T74: 61 - Serviços de alojamento e alimentação | U74: 81 | V74: 0 | W74: 0 | X74: =IF((U74=0),0,(IF((P74=0),DEMANDA!$AB$18,(VALUE((RIGHT(P74,3))))))) -> 234.464 | Y74: =IF(OR(V74=0,DEMANDA!$AB$18<=X74),0,(DEMANDA!$AB$18-X74)) -> 0 | Z74: 0
N75: 62 | O75: Hotéis e motéis | Q75: 74 | R75: 35 | S75: 40 | T75: 62 - Hotéis e motéis | U75: 74 | V75: 0 | W75: 0 | X75: =IF((U75=0),0,(IF((P75=0),DEMANDA!$AB$18,(VALUE((RIGHT(P75,3))))))) -> 234.464 | Y75: =IF(OR(V75=0,DEMANDA!$AB$18<=X75),0,(DEMANDA!$AB$18-X75)) -> 0 | Z75: 0
N76: 63 | O76: Restaurantes e lanchonetes | Q76: 88 | R76: 60 | S76: 52 | T76: 63 - Restaurantes e lanchonetes | U76: 88 | V76: 0 | W76: 0 | X76: =IF((U76=0),0,(IF((P76=0),DEMANDA!$AB$18,(VALUE((RIGHT(P76,3))))))) -> 234.464 | Y76: =IF(OR(V76=0,DEMANDA!$AB$18<=X76),0,(DEMANDA!$AB$18-X76)) -> 0 | Z76: 0
N77: 64 | O77: Fabricação de máquinas, ferramentas, máquinas operatrizes e aparelhos industriais acoplados ou não a motores elétricos | Q77: 76 | R77: 30 | S77: 30 | T77: 64 - Fabricação de máquinas, ferramentas, máquinas operatrizes e aparelhos industriais acoplados ou não a motores elétricos | U77: 76 | V77: 0 | W77: 0 | X77: =IF((U77=0),0,(IF((P77=0),DEMANDA!$AB$18,(VALUE((RIGHT(P77,3))))))) -> 234.464 | Y77: =IF(OR(V77=0,DEMANDA!$AB$18<=X77),0,(DEMANDA!$AB$18-X77)) -> 0 | Z77: 0
N78: 65 | O78: Fabricação de peças, acessórios, utensílios e ferramentas para máquinas industriais | Q78: 63 | R78: 38 | S78: 19 | T78: 65 - Fabricação de peças, acessórios, utensílios e ferramentas para máquinas industriais | U78: 63 | V78: 0 | W78: 0 | X78: =IF((U78=0),0,(IF((P78=0),DEMANDA!$AB$18,(VALUE((RIGHT(P78,3))))))) -> 234.464 | Y78: =IF(OR(V78=0,DEMANDA!$AB$18<=X78),0,(DEMANDA!$AB$18-X78)) -> 0 | Z78: 0
N79: 66 | O79: Fabricação de máquinas, aparelhos e materiais para agricultura, avicultura, apicultura, criação de outros pequenos animais e obtenção de produtos de origem animal, e para beneficiamento ou preparação de produtos agrícolas - peças e acessórios | Q79: 48 | R79: 28 | S79: 30 | T79: 66 - Fabricação de máquinas, aparelhos e materiais para agricultura, avicultura, apicultura, criação de outros pequenos animais e obtenção de produtos de origem animal, e para beneficiamento ou preparação de produtos agrícolas - peças e acessórios | U79: 48 | V79: 0 | W79: 0 | X79: =IF((U79=0),0,(IF((P79=0),DEMANDA!$AB$18,(VALUE((RIGHT(P79,3))))))) -> 234.464 | Y79: =IF(OR(V79=0,DEMANDA!$AB$18<=X79),0,(DEMANDA!$AB$18-X79)) -> 0 | Z79: 0
N80: 67 | O80: Fabricação de cronômetros e relógios, elétricos ou não - inclusive a fabricação de peças | Q80: 47 | R80: 33 | S80: 38 | T80: 67 - Fabricação de cronômetros e relógios, elétricos ou não - inclusive a fabricação de peças | U80: 47 | V80: 0 | W80: 0 | X80: =IF((U80=0),0,(IF((P80=0),DEMANDA!$AB$18,(VALUE((RIGHT(P80,3))))))) -> 234.464 | Y80: =IF(OR(V80=0,DEMANDA!$AB$18<=X80),0,(DEMANDA!$AB$18-X80)) -> 0 | Z80: 0
N81: 68 | O81: Reparação ou manutenção de máquinas, aparelhos e equipa- mentos industriais, agrícolas e de máquinas de terraplenagem | Q81: 43 | R81: 29 | S81: 27 | T81: 68 - Reparação ou manutenção de máquinas, aparelhos e equipa- mentos industriais, agrícolas e de máquinas de terraplenagem | U81: 43 | V81: 0 | W81: 0 | X81: =IF((U81=0),0,(IF((P81=0),DEMANDA!$AB$18,(VALUE((RIGHT(P81,3))))))) -> 234.464 | Y81: =IF(OR(V81=0,DEMANDA!$AB$18<=X81),0,(DEMANDA!$AB$18-X81)) -> 0 | Z81: 0
N82: 69 | O82: Indústria de material elétrico e de comunicações fabricação de aparelhos e utensílios elétricos para fins industriais e comerciais, inclusive peças e acessórios | Q82: 84 | R82: 70 | S82: 32 | T82: 69 - Indústria de material elétrico e de comunicações fabricação de aparelhos e utensílios elétricos para fins industriais e comerciais, inclusive peças e acessórios | U82: 84 | V82: 0 | W82: 0 | X82: =IF((U82=0),0,(IF((P82=0),DEMANDA!$AB$18,(VALUE((RIGHT(P82,3))))))) -> 234.464 | Y82: =IF(OR(V82=0,DEMANDA!$AB$18<=X82),0,(DEMANDA!$AB$18-X82)) -> 0 | Z82: 0
N83: 70 | O83: Indústria de material de transporte | Q83: 45 | R83: 37 | S83: 36 | T83: 70 - Indústria de material de transporte | U83: 45 | V83: 0 | W83: 0 | X83: =IF((U83=0),0,(IF((P83=0),DEMANDA!$AB$18,(VALUE((RIGHT(P83,3))))))) -> 234.464 | Y83: =IF(OR(V83=0,DEMANDA!$AB$18<=X83),0,(DEMANDA!$AB$18-X83)) -> 0 | Z83: 0
N84: 71 | O84: Reparação de veículos ferroviários | Q84: 38 | R84: 35 | S84: 40 | T84: 71 - Reparação de veículos ferroviários | U84: 38 | V84: 0 | W84: 0 | X84: =IF((U84=0),0,(IF((P84=0),DEMANDA!$AB$18,(VALUE((RIGHT(P84,3))))))) -> 234.464 | Y84: =IF(OR(V84=0,DEMANDA!$AB$18<=X84),0,(DEMANDA!$AB$18-X84)) -> 0 | Z84: 0
N85: 72 | O85: Fabricação de carrocerias para veículos automotores-exclusive chassis | Q85: 51 | R85: 38 | S85: 31 | T85: 72 - Fabricação de carrocerias para veículos automotores-exclusive chassis | U85: 51 | V85: 0 | W85: 0 | X85: =IF((U85=0),0,(IF((P85=0),DEMANDA!$AB$18,(VALUE((RIGHT(P85,3))))))) -> 234.464 | Y85: =IF(OR(V85=0,DEMANDA!$AB$18<=X85),0,(DEMANDA!$AB$18-X85)) -> 0 | Z85: 0
N86: 73 | O86: Indústria de madeira | Q86: 55 | R86: 38 | S86: 12 | T86: 73 - Indústria de madeira | U86: 55 | V86: 0 | W86: 0 | X86: =IF((U86=0),0,(IF((P86=0),DEMANDA!$AB$18,(VALUE((RIGHT(P86,3))))))) -> 234.464 | Y86: =IF(OR(V86=0,DEMANDA!$AB$18<=X86),0,(DEMANDA!$AB$18-X86)) -> 0 | Z86: 0
N87: 74 | O87: Desdobramento da madeira | Q87: 51 | R87: 36 | S87: 12 | T87: 74 - Desdobramento da madeira | U87: 51 | V87: 0 | W87: 0 | X87: =IF((U87=0),0,(IF((P87=0),DEMANDA!$AB$18,(VALUE((RIGHT(P87,3))))))) -> 234.464 | Y87: =IF(OR(V87=0,DEMANDA!$AB$18<=X87),0,(DEMANDA!$AB$18-X87)) -> 0 | Z87: 0
N88: 75 | O88: Fabricação de chapas e placas de madeira, aglomerada ou prensada e de madeira compensada, revestida ou não com material plástico | Q88: 59 | R88: 40 | S88: 11 | T88: 75 - Fabricação de chapas e placas de madeira, aglomerada ou prensada e de madeira compensada, revestida ou não com material plástico | U88: 59 | V88: 0 | W88: 0 | X88: =IF((U88=0),0,(IF((P88=0),DEMANDA!$AB$18,(VALUE((RIGHT(P88,3))))))) -> 234.464 | Y88: =IF(OR(V88=0,DEMANDA!$AB$18<=X88),0,(DEMANDA!$AB$18-X88)) -> 0 | Z88: 0
N89: 76 | O89: Indústria de mobiliário, fabricação de móveis de madeira, vime e junco | Q89: 83 | R89: 42 | S89: 22 | T89: 76 - Indústria de mobiliário, fabricação de móveis de madeira, vime e junco | U89: 83 | V89: 0 | W89: 0 | X89: =IF((U89=0),0,(IF((P89=0),DEMANDA!$AB$18,(VALUE((RIGHT(P89,3))))))) -> 234.464 | Y89: =IF(OR(V89=0,DEMANDA!$AB$18<=X89),0,(DEMANDA!$AB$18-X89)) -> 0 | Z89: 0
N90: 77 | O90: Indústria de celulose, papel e papelão fabricação de papel, papelão, cartolina e cartão | Q90: 82 | R90: 77 | S90: 71 | T90: 77 - Indústria de celulose, papel e papelão fabricação de papel, papelão, cartolina e cartão | U90: 82 | V90: 0 | W90: 0 | X90: =IF((U90=0),0,(IF((P90=0),DEMANDA!$AB$18,(VALUE((RIGHT(P90,3))))))) -> 234.464 | Y90: =IF(OR(V90=0,DEMANDA!$AB$18<=X90),0,(DEMANDA!$AB$18-X90)) -> 0 | Z90: 0
N91: 78 | O91: Indústria de borracha recondicionamento de pneumáticos | Q91: 68 | R91: 58 | S91: 26 | T91: 78 - Indústria de borracha recondicionamento de pneumáticos | U91: 68 | V91: 0 | W91: 0 | X91: =IF((U91=0),0,(IF((P91=0),DEMANDA!$AB$18,(VALUE((RIGHT(P91,3))))))) -> 234.464 | Y91: =IF(OR(V91=0,DEMANDA!$AB$18<=X91),0,(DEMANDA!$AB$18-X91)) -> 0 | Z91: 0
N92: 79 | O92: Indústria de couros, peles e produtos similares curtimento e outras preparações de couros e peles - inclusive subprodutos | Q92: 64 | R92: 51 | S92: 32 | T92: 79 - Indústria de couros, peles e produtos similares curtimento e outras preparações de couros e peles - inclusive subprodutos | U92: 64 | V92: 0 | W92: 0 | X92: =IF((U92=0),0,(IF((P92=0),DEMANDA!$AB$18,(VALUE((RIGHT(P92,3))))))) -> 234.464 | Y92: =IF(OR(V92=0,DEMANDA!$AB$18<=X92),0,(DEMANDA!$AB$18-X92)) -> 0 | Z92: 0
N93: 80 | O93: Indústria química | Q93: 67 | R93: 48 | S93: 23 | T93: 80 - Indústria química | U93: 67 | V93: 0 | W93: 0 | X93: =IF((U93=0),0,(IF((P93=0),DEMANDA!$AB$18,(VALUE((RIGHT(P93,3))))))) -> 234.464 | Y93: =IF(OR(V93=0,DEMANDA!$AB$18<=X93),0,(DEMANDA!$AB$18-X93)) -> 0 | Z93: 0
N94: 81 | O94: Produção de elementos Químicos e de produtos químicos inorgânicos, orgânicos, orgânicos inorgânicos, exclusive produtos derivados do processamento do petróleo, da rochas oleígenas, de carvão-de-pedra e de madeira | Q94: 92 | R94: 54 | S94: 36 | T94: 81 - Produção de elementos Químicos e de produtos químicos inorgânicos, orgânicos, orgânicos inorgânicos, exclusive produtos derivados do processamento do petróleo, da rochas oleígenas, de carvão-de-pedra e de madeira | U94: 92 | V94: 0 | W94: 0 | X94: =IF((U94=0),0,(IF((P94=0),DEMANDA!$AB$18,(VALUE((RIGHT(P94,3))))))) -> 234.464 | Y94: =IF(OR(V94=0,DEMANDA!$AB$18<=X94),0,(DEMANDA!$AB$18-X94)) -> 0 | Z94: 0
N95: 82 | O95: Fabricação de asfalto | Q95: 79 | R95: 52 | S95: 22 | T95: 82 - Fabricação de asfalto | U95: 79 | V95: 0 | W95: 0 | X95: =IF((U95=0),0,(IF((P95=0),DEMANDA!$AB$18,(VALUE((RIGHT(P95,3))))))) -> 234.464 | Y95: =IF(OR(V95=0,DEMANDA!$AB$18<=X95),0,(DEMANDA!$AB$18-X95)) -> 0 | Z95: 0
N96: 83 | O96: Fabricação de resinas de fibras e de fios artificiais e sintéticos e de borracha e látex sintéticos | Q96: 56 | R96: 48 | S96: 24 | T96: 83 - Fabricação de resinas de fibras e de fios artificiais e sintéticos e de borracha e látex sintéticos | U96: 56 | V96: 0 | W96: 0 | X96: =IF((U96=0),0,(IF((P96=0),DEMANDA!$AB$18,(VALUE((RIGHT(P96,3))))))) -> 234.464 | Y96: =IF(OR(V96=0,DEMANDA!$AB$18<=X96),0,(DEMANDA!$AB$18-X96)) -> 0 | Z96: 0
N97: 84 | O97: Produção de óleos, gorduras e ceras vegetais e animais, em banho de óleos, essenciais vegetais e outros produtos da destilação da madeira - exclusive refinação de produtos alimentares (destilaria de álcool proveniente de madeira) | Q97: 62 | R97: 43 | S97: 22 | T97: 84 - Produção de óleos, gorduras e ceras vegetais e animais, em banho de óleos, essenciais vegetais e outros produtos da destilação da madeira - exclusive refinação de produtos alimentares (destilaria de álcool proveniente de madeira) | U97: 62 | V97: 0 | W97: 0 | X97: =IF((U97=0),0,(IF((P97=0),DEMANDA!$AB$18,(VALUE((RIGHT(P97,3))))))) -> 234.464 | Y97: =IF(OR(V97=0,DEMANDA!$AB$18<=X97),0,(DEMANDA!$AB$18-X97)) -> 0 | Z97: 0
N98: 85 | O98: Fabricação de concentrados aromáticos naturais, artificiais e sintéticos, inclusive mesclas | Q98: 21 | R98: 15 | S98: 13 | T98: 85 - Fabricação de concentrados aromáticos naturais, artificiais e sintéticos, inclusive mesclas | U98: 21 | V98: 0 | W98: 0 | X98: =IF((U98=0),0,(IF((P98=0),DEMANDA!$AB$18,(VALUE((RIGHT(P98,3))))))) -> 234.464 | Y98: =IF(OR(V98=0,DEMANDA!$AB$18<=X98),0,(DEMANDA!$AB$18-X98)) -> 0 | Z98: 0
N99: 86 | O99: Fabricação de preparados para limpeza e polimento, desinfetantes, inseticidas, germicidas e fungicidas | Q99: 77 | R99: 66 | S99: 28 | T99: 86 - Fabricação de preparados para limpeza e polimento, desinfetantes, inseticidas, germicidas e fungicidas | U99: 77 | V99: 0 | W99: 0 | X99: =IF((U99=0),0,(IF((P99=0),DEMANDA!$AB$18,(VALUE((RIGHT(P99,3))))))) -> 234.464 | Y99: =IF(OR(V99=0,DEMANDA!$AB$18<=X99),0,(DEMANDA!$AB$18-X99)) -> 0 | Z99: 0
N100: 87 | O100: Fabricação de adubos e fertilizantes e corretivos de solo | Q100: 84 | R100: 57 | S100: 19 | T100: 87 - Fabricação de adubos e fertilizantes e corretivos de solo | U100: 84 | V100: 0 | W100: 0 | X100: =IF((U100=0),0,(IF((P100=0),DEMANDA!$AB$18,(VALUE((RIGHT(P100,3))))))) -> 234.464 | Y100: =IF(OR(V100=0,DEMANDA!$AB$18<=X100),0,(DEMANDA!$AB$18-X100)) -> 0 | Z100: 0
N101: 88 | O101: Indústria de produtos farmacêuticos e veterinários | Q101: 68 | R101: 39 | S101: 24 | T101: =CONCATENATE(N101," - ",O101) -> 88 - Indústria de produtos farmacêuticos e veterinários | U101: 68 | V101: 0 | W101: 0 | X101: =IF((U101=0),0,(IF((P101=0),DEMANDA!$AB$18,(VALUE((RIGHT(P101,3))))))) -> 234.464 | Y101: =IF(OR(V101=0,DEMANDA!$AB$18<=X101),0,(DEMANDA!$AB$18-X101)) -> 0 | Z101: 0
N102: 89 | O102: Indústria de perfumaria, sabões e velas fabricação de sabões, detergentes e glicerinas | Q102: 85 | R102: 46 | S102: 29 | T102: 89 - Indústria de perfumaria, sabões e velas fabricação de sabões, detergentes e glicerinas | U102: 85 | V102: 0 | W102: 0 | X102: =IF((U102=0),0,(IF((P102=0),DEMANDA!$AB$18,(VALUE((RIGHT(P102,3))))))) -> 234.464 | Y102: =IF(OR(V102=0,DEMANDA!$AB$18<=X102),0,(DEMANDA!$AB$18-X102)) -> 0 | Z102: 0
N103: 90 | O103: Indústria de produtos de matérias plásticas | Q103: 85 | R103: 41 | S103: 48 | T103: 90 - Indústria de produtos de matérias plásticas | U103: 85 | V103: 0 | W103: 0 | X103: =IF((U103=0),0,(IF((P103=0),DEMANDA!$AB$18,(VALUE((RIGHT(P103,3))))))) -> 234.464 | Y103: =IF(OR(V103=0,DEMANDA!$AB$18<=X103),0,(DEMANDA!$AB$18-X103)) -> 0 | Z103: 0
N104: 91 | O104: Fabricação de artigos de material plástico para usos - exclusive embalagem e acondicionamento | Q104: 85 | R104: 41 | S104: 30 | T104: 91 - Fabricação de artigos de material plástico para usos - exclusive embalagem e acondicionamento | U104: 85 | V104: 0 | W104: 0 | X104: =IF((U104=0),0,(IF((P104=0),DEMANDA!$AB$18,(VALUE((RIGHT(P104,3))))))) -> 234.464 | Y104: =IF(OR(V104=0,DEMANDA!$AB$18<=X104),0,(DEMANDA!$AB$18-X104)) -> 0 | Z104: 0
N105: 92 | O105: Indústria têxtil | Q105: 81 | R105: 52 | S105: 43 | T105: 92 - Indústria têxtil | U105: 81 | V105: 0 | W105: 0 | X105: =IF((U105=0),0,(IF((P105=0),DEMANDA!$AB$18,(VALUE((RIGHT(P105,3))))))) -> 234.464 | Y105: =IF(OR(V105=0,DEMANDA!$AB$18<=X105),0,(DEMANDA!$AB$18-X105)) -> 0 | Z105: 0
N106: 93 | O106: Beneficiamento de fibras têxteis vegetais, artificiais e de materiais têxteis de origem animal, fabricação de estopa de materiais para estofados e recuperação de resíduos têxteis | Q106: 60 | R106: 44 | S106: 36 | T106: 93 - Beneficiamento de fibras têxteis vegetais, artificiais e de materiais têxteis de origem animal, fabricação de estopa de materiais para estofados e recuperação de resíduos têxteis | U106: 60 | V106: 0 | W106: 0 | X106: =IF((U106=0),0,(IF((P106=0),DEMANDA!$AB$18,(VALUE((RIGHT(P106,3))))))) -> 234.464 | Y106: =IF(OR(V106=0,DEMANDA!$AB$18<=X106),0,(DEMANDA!$AB$18-X106)) -> 0 | Z106: 0
N107: 94 | O107: Fiação e Tecelagem | Q107: 91 | R107: 57 | S107: 46 | T107: 94 - Fiação e Tecelagem | U107: 91 | V107: 0 | W107: 0 | X107: =IF((U107=0),0,(IF((P107=0),DEMANDA!$AB$18,(VALUE((RIGHT(P107,3))))))) -> 234.464 | Y107: =IF(OR(V107=0,DEMANDA!$AB$18<=X107),0,(DEMANDA!$AB$18-X107)) -> 0 | Z107: 0
N108: 95 | O108: Malharia e fabricação de tecidos elásticos | Q108: 92 | R108: 55 | S108: 47 | T108: 95 - Malharia e fabricação de tecidos elásticos | U108: 92 | V108: 0 | W108: 0 | X108: =IF((U108=0),0,(IF((P108=0),DEMANDA!$AB$18,(VALUE((RIGHT(P108,3))))))) -> 234.464 | Y108: =IF(OR(V108=0,DEMANDA!$AB$18<=X108),0,(DEMANDA!$AB$18-X108)) -> 0 | Z108: 0
N109: 96 | O109: Indústria de vestuário, calçados e artefatos de tecidos | Q109: 49 | R109: 43 | S109: 27 | T109: 96 - Indústria de vestuário, calçados e artefatos de tecidos | U109: 49 | V109: 0 | W109: 0 | X109: =IF((U109=0),0,(IF((P109=0),DEMANDA!$AB$18,(VALUE((RIGHT(P109,3))))))) -> 234.464 | Y109: =IF(OR(V109=0,DEMANDA!$AB$18<=X109),0,(DEMANDA!$AB$18-X109)) -> 0 | Z109: 0
N110: 97 | O110: Confecções de roupas e agasalhos | Q110: 28 | R110: 22 | S110: 25 | T110: 97 - Confecções de roupas e agasalhos | U110: 28 | V110: 0 | W110: 0 | X110: =IF((U110=0),0,(IF((P110=0),DEMANDA!$AB$18,(VALUE((RIGHT(P110,3))))))) -> 234.464 | Y110: =IF(OR(V110=0,DEMANDA!$AB$18<=X110),0,(DEMANDA!$AB$18-X110)) -> 0 | Z110: 0
N111: 98 | O111: Fabricação de calçados | Q111: 69 | R111: 63 | S111: 29 | T111: 98 - Fabricação de calçados | U111: 69 | V111: 0 | W111: 0 | X111: =IF((U111=0),0,(IF((P111=0),DEMANDA!$AB$18,(VALUE((RIGHT(P111,3))))))) -> 234.464 | Y111: =IF(OR(V111=0,DEMANDA!$AB$18<=X111),0,(DEMANDA!$AB$18-X111)) -> 0 | Z111: 0
N112: 99 | O112: Indústria de produtos alimentares | Q112: 77 | R112: 56 | S112: 38 | T112: 99 - Indústria de produtos alimentares | U112: 77 | V112: 0 | W112: 0 | X112: =IF((U112=0),0,(IF((P112=0),DEMANDA!$AB$18,(VALUE((RIGHT(P112,3))))))) -> 234.464 | Y112: =IF(OR(V112=0,DEMANDA!$AB$18<=X112),0,(DEMANDA!$AB$18-X112)) -> 0 | Z112: 0
N113: 100 | O113: Beneficiamento de café, cereais e produtos afins | P113: ≤130 | Q113: 97 | R113: 56 | S113: 20 | T113: 100 - Beneficiamento de café, cereais e produtos afins | U113: 97 | V113: 60 | W113: 0 | X113: =IF((U113=0),0,(IF((P113=0),DEMANDA!$AB$18,(VALUE((RIGHT(P113,3))))))) -> 130 | Y113: =IF(OR(V113=0,DEMANDA!$AB$18<=X113),0,(DEMANDA!$AB$18-X113)) -> 104.464 | Z113: 0
N114: =N113 -> 100 | P114: >130 | Q114: 60 | R114: 35 | S114: 27 | T114: 100 - | U114: 60 | V114: 0 | W114: 0 | X114: =IF((U114=0),0,(IF((P114=0),DEMANDA!$AB$18,(VALUE((RIGHT(P114,3))))))) -> 130 | Y114: =IF(OR(V114=0,DEMANDA!$AB$18<=X114),0,(DEMANDA!$AB$18-X114)) -> 0 | Z114: 0
N115: 101 | O115: Moagem de trigo | Q115: 92 | R115: 72 | S115: 71 | T115: 101 - Moagem de trigo | U115: 92 | V115: 0 | W115: 0 | X115: =IF((U115=0),0,(IF((P115=0),DEMANDA!$AB$18,(VALUE((RIGHT(P115,3))))))) -> 234.464 | Y115: =IF(OR(V115=0,DEMANDA!$AB$18<=X115),0,(DEMANDA!$AB$18-X115)) -> 0 | Z115: 0
N116: 102 | O116: Torrefação e moagem de café | Q116: 82 | R116: 77 | S116: 19 | T116: 102 - Torrefação e moagem de café | U116: 82 | V116: 0 | W116: 0 | X116: =IF((U116=0),0,(IF((P116=0),DEMANDA!$AB$18,(VALUE((RIGHT(P116,3))))))) -> 234.464 | Y116: =IF(OR(V116=0,DEMANDA!$AB$18<=X116),0,(DEMANDA!$AB$18-X116)) -> 0 | Z116: 0
N117: 103 | O117: Fabricação de produtos de milho, exclusive óleos | Q117: 55 | R117: 48 | S117: 12 | T117: 103 - Fabricação de produtos de milho, exclusive óleos | U117: 55 | V117: 0 | W117: 0 | X117: =IF((U117=0),0,(IF((P117=0),DEMANDA!$AB$18,(VALUE((RIGHT(P117,3))))))) -> 234.464 | Y117: =IF(OR(V117=0,DEMANDA!$AB$18<=X117),0,(DEMANDA!$AB$18-X117)) -> 0 | Z117: 0
N118: 104 | O118: Beneficiamento, moagem, torrefação e fabricação de produtos alimentares diversos de origem vegetal, não especificados ou não classificados | Q118: 91 | R118: 53 | S118: 14 | T118: 104 - Beneficiamento, moagem, torrefação e fabricação de produtos alimentares diversos de origem vegetal, não especificados ou não classificados | U118: 91 | V118: 0 | W118: 0 | X118: =IF((U118=0),0,(IF((P118=0),DEMANDA!$AB$18,(VALUE((RIGHT(P118,3))))))) -> 234.464 | Y118: =IF(OR(V118=0,DEMANDA!$AB$18<=X118),0,(DEMANDA!$AB$18-X118)) -> 0 | Z118: 0
N119: 105 | O119: Refeições conservadas, conservas de frutas, legumes e outros vegetais, preparação de especiarias e condimentos e fabricação de doces, exclusive de confeitaria | Q119: 54 | R119: 34 | S119: 28 | T119: 105 - Refeições conservadas, conservas de frutas, legumes e outros vegetais, preparação de especiarias e condimentos e fabricação de doces, exclusive de confeitaria | U119: 54 | V119: 0 | W119: 0 | X119: =IF((U119=0),0,(IF((P119=0),DEMANDA!$AB$18,(VALUE((RIGHT(P119,3))))))) -> 234.464 | Y119: =IF(OR(V119=0,DEMANDA!$AB$18<=X119),0,(DEMANDA!$AB$18-X119)) -> 0 | Z119: 0
N120: 106 | O120: Abate de animais | P120: ≤200 | Q120: 85 | R120: 72 | S120: 52 | T120: 106 - Abate de animais | U120: 85 | V120: 80 | W120: 0 | X120: =IF((U120=0),0,(IF((P120=0),DEMANDA!$AB$18,(VALUE((RIGHT(P120,3))))))) -> 200 | Y120: =IF(OR(V120=0,DEMANDA!$AB$18<=X120),0,(DEMANDA!$AB$18-X120)) -> 34.464 | Z120: 0
N121: =N120 -> 106 | P121: >200 | Q121: 80 | R121: 53 | S121: 43 | T121: 106 - | U121: 80 | V121: 0 | W121: 0 | X121: =IF((U121=0),0,(IF((P121=0),DEMANDA!$AB$18,(VALUE((RIGHT(P121,3))))))) -> 200 | Y121: =IF(OR(V121=0,DEMANDA!$AB$18<=X121),0,(DEMANDA!$AB$18-X121)) -> 0 | Z121: 0
N122: 107 | O122: Preparação de conservas de carne - inclusive subprodutos - processados em matadouros e frigoríficos | P122: ≤120 | Q122: 70 | R122: 38 | S122: 29 | T122: 107 - Preparação de conservas de carne - inclusive subprodutos - processados em matadouros e frigoríficos | U122: 70 | V122: 62 | W122: 0 | X122: =IF((U122=0),0,(IF((P122=0),DEMANDA!$AB$18,(VALUE((RIGHT(P122,3))))))) -> 120 | Y122: =IF(OR(V122=0,DEMANDA!$AB$18<=X122),0,(DEMANDA!$AB$18-X122)) -> 114.464 | Z122: 0
N123: =N122 -> 107 | P123: >120 | Q123: 62 | R123: 48 | S123: 71 | T123: 107 - | U123: 62 | V123: 0 | W123: 0 | X123: =IF((U123=0),0,(IF((P123=0),DEMANDA!$AB$18,(VALUE((RIGHT(P123,3))))))) -> 120 | Y123: =IF(OR(V123=0,DEMANDA!$AB$18<=X123),0,(DEMANDA!$AB$18-X123)) -> 0 | Z123: 0
N124: 108 | O124: Preparação de conservas de carne e produtos de salsicharia, não processados em matadouros e frigoríficos | Q124: 56 | R124: 44 | S124: 39 | T124: 108 - Preparação de conservas de carne e produtos de salsicharia, não processados em matadouros e frigoríficos | U124: 56 | V124: 0 | W124: 0 | X124: =IF((U124=0),0,(IF((P124=0),DEMANDA!$AB$18,(VALUE((RIGHT(P124,3))))))) -> 234.464 | Y124: =IF(OR(V124=0,DEMANDA!$AB$18<=X124),0,(DEMANDA!$AB$18-X124)) -> 0 | Z124: 0
N125: 109 | O125: Preparação de leite e fabricação de produtos de laticínios | P125: <80 | Q125: 90 | R125: 82 | S125: 28 | T125: 109 - Preparação de leite e fabricação de produtos de laticínios | U125: 90 | V125: 97 | W125: 90 | X125: =IF((U125=0),0,(IF((DEMANDA!AB18>X126),80,DEMANDA!AB18))) -> 234.464 | Y125: =IF((X125<=80),0,(IF((DEMANDA!AB18>300),220,(DEMANDA!AB18-80)))) -> 154.464 | Z125: =IF((DEMANDA!AB18>300),(DEMANDA!AB18-300),0) -> 0
N126: =N125 -> 109 | P126: >80 ≤300 | Q126: 97 | R126: 65 | S126: 38 | T126: 109 - | U126: 97 | V126: 95 | W126: 0 | X126: =IF((U126=0),0,(IF((P126=0),DEMANDA!$AB$18,(RIGHT(P126,3))))) -> 300 | Y126: =IF(OR(V126=0,DEMANDA!$AB$18<=X126),0,(DEMANDA!$AB$18-X126)) -> 0 | Z126: 0
N127: =N126 -> 109 | P127: >300 | Q127: 95 | R127: 57 | S127: 64 | T127: 109 - | U127: 95 | V127: 0 | W127: 0 | X127: =IF((U127=0),0,(IF((P127=0),DEMANDA!$AB$18,(RIGHT(P127,3))))) -> 300 | Y127: =IF(OR(V127=0,DEMANDA!$AB$18<=X127),0,(DEMANDA!$AB$18-X127)) -> 0 | Z127: 0
N128: 110 | O128: Fabricação de açúcar | Q128: 54 | R128: 30 | S128: 49 | T128: 110 - Fabricação de açúcar | U128: 54 | V128: 0 | W128: 0 | X128: =IF((U128=0),0,(IF((P128=0),DEMANDA!$AB$18,(VALUE((RIGHT(P128,3))))))) -> 234.464 | Y128: =IF(OR(V128=0,DEMANDA!$AB$18<=X128),0,(DEMANDA!$AB$18-X128)) -> 0 | Z128: 0
N129: 111 | O129: Fabricação de balas, caramelos, pastilhas, drops, bombons, chocolates, etc. - inclusive goma de mascar | Q129: 96 | R129: 78 | S129: 30 | T129: 111 - Fabricação de balas, caramelos, pastilhas, drops, bombons, chocolates, etc. - inclusive goma de mascar | U129: 96 | V129: 0 | W129: 0 | X129: =IF((U129=0),0,(IF((P129=0),DEMANDA!$AB$18,(VALUE((RIGHT(P129,3))))))) -> 234.464 | Y129: =IF(OR(V129=0,DEMANDA!$AB$18<=X129),0,(DEMANDA!$AB$18-X129)) -> 0 | Z129: 0
N130: 112 | O130: Serviços de reparação, manutenção e conservação | Q130: 52 | R130: 34 | S130: 32 | T130: 112 - Serviços de reparação, manutenção e conservação | U130: 52 | V130: 0 | W130: 0 | X130: =IF((U130=0),0,(IF((P130=0),DEMANDA!$AB$18,(VALUE((RIGHT(P130,3))))))) -> 234.464 | Y130: =IF(OR(V130=0,DEMANDA!$AB$18<=X130),0,(DEMANDA!$AB$18-X130)) -> 0 | Z130: 0
N131: 113 | O131: Reparação, manutenção e conservação de máquinas e de uso doméstico - exclusive máquinas de costura | Q131: 36 | R131: 27 | S131: 40 | T131: 113 - Reparação, manutenção e conservação de máquinas e de uso doméstico - exclusive máquinas de costura | U131: 36 | V131: 0 | W131: 0 | X131: =IF((U131=0),0,(IF((P131=0),DEMANDA!$AB$18,(VALUE((RIGHT(P131,3))))))) -> 234.464 | Y131: =IF(OR(V131=0,DEMANDA!$AB$18<=X131),0,(DEMANDA!$AB$18-X131)) -> 0 | Z131: 0
N132: 114 | O132: Reparação de veículos - exclusive embarcações, aeronaves e veículos ferroviários | Q132: 63 | R132: 42 | S132: 36 | T132: 114 - Reparação de veículos - exclusive embarcações, aeronaves e veículos ferroviários | U132: 63 | V132: 0 | W132: 0 | X132: =IF((U132=0),0,(IF((P132=0),DEMANDA!$AB$18,(VALUE((RIGHT(P132,3))))))) -> 234.464 | Y132: =IF(OR(V132=0,DEMANDA!$AB$18<=X132),0,(DEMANDA!$AB$18-X132)) -> 0 | Z132: 0
N133: 115 | O133: Manutenção e conservação de veículos em geral | Q133: 47 | R133: 33 | S133: 32 | T133: =CONCATENATE(N133," - ",O133) -> 115 - Manutenção e conservação de veículos em geral | U133: 47 | V133: 0 | W133: 0 | X133: =IF((U133=0),0,(IF((P133=0),DEMANDA!$AB$18,(VALUE((RIGHT(P133,3))))))) -> 234.464 | Y133: =IF(OR(V133=0,DEMANDA!$AB$18<=X133),0,(DEMANDA!$AB$18-X133)) -> 0 | Z133: 0
N134: 116 | O134: Serviços pessoais | Q134: 62 | R134: 43 | S134: 32 | T134: 116 - Serviços pessoais | U134: =Q134 -> 62 | V134: =IF((N135=N134),Q135,0) -> 0 | W134: =IF((N134=N136),Q134,0) -> 0 | X134: =IF((U134=0),0,(IF((P134=0),DEMANDA!$AB$18,(VALUE((RIGHT(P134,3))))))) -> 234.464 | Y134: =IF(OR(V134=0,DEMANDA!$AB$18<=X134),0,(DEMANDA!$AB$18-X134)) -> 0 | Z134: 0
N135: 117 | O135: Serviços de higiene - barbearias, saunas, lavanderias, etc. | Q135: 58 | R135: 46 | S135: 36 | T135: 117 - Serviços de higiene - barbearias, saunas, lavanderias, etc. | U135: 58 | V135: 0 | W135: 0 | X135: =IF((U135=0),0,(IF((P135=0),DEMANDA!$AB$18,(VALUE((RIGHT(P135,3))))))) -> 234.464 | Y135: =IF(OR(V135=0,DEMANDA!$AB$18<=X135),0,(DEMANDA!$AB$18-X135)) -> 0 | Z135: 0
N136: 118 | O136: Hospitais e casas de saúde | P136: ≤110 | Q136: 81 | R136: 61 | S136: 40 | T136: 118 - Hospitais e casas de saúde | U136: 81 | V136: 60 | W136: 0 | X136: =IF((U136=0),0,(IF((P136=0),DEMANDA!$AB$18,(VALUE((RIGHT(P136,3))))))) -> 110 | Y136: =IF(OR(V136=0,DEMANDA!$AB$18<=X136),0,(DEMANDA!$AB$18-X136)) -> 124.464 | Z136: 0
N137: =N136 -> 118 | P137: >110 | Q137: 60 | R137: 32 | S137: 35 | T137: 118 - | U137: 60 | V137: 0 | W137: 0 | X137: =IF((U137=0),0,(IF((P137=0),DEMANDA!$AB$18,(VALUE((RIGHT(P137,3))))))) -> 110 | Y137: =IF(OR(V137=0,DEMANDA!$AB$18<=X137),0,(DEMANDA!$AB$18-X137)) -> 0 | Z137: 0
N138: 119 | O138: Estabelecimentos de ensino tradicional (1º e 2° graus) | Q138: 63 | R138: 58 | S138: 31 | T138: 119 - Estabelecimentos de ensino tradicional (1º e 2° graus) | U138: 63 | V138: 0 | W138: 0 | X138: =IF((U138=0),0,(IF((P138=0),DEMANDA!$AB$18,(VALUE((RIGHT(P138,3))))))) -> 234.464 | Y138: =IF(OR(V138=0,DEMANDA!$AB$18<=X138),0,(DEMANDA!$AB$18-X138)) -> 0 | Z138: 0
N139: 120 | O139: Estabelecimentos de ensino superior - Faculdade | Q139: 42 | R139: 26 | S139: 24 | T139: 120 - Estabelecimentos de ensino superior - Faculdade | U139: 42 | V139: 0 | W139: 0 | X139: =IF((U139=0),0,(IF((P139=0),DEMANDA!$AB$18,(VALUE((RIGHT(P139,3))))))) -> 234.464 | Y139: =IF(OR(V139=0,DEMANDA!$AB$18<=X139),0,(DEMANDA!$AB$18-X139)) -> 0 | Z139: 0
N140: 121 | O140: Estabelecimentos de ensino integrado - unidades integradas | Q140: 65 | R140: 34 | S140: 25 | T140: 121 - Estabelecimentos de ensino integrado - unidades integradas | U140: 65 | V140: 0 | W140: 0 | X140: =IF((U140=0),0,(IF((P140=0),DEMANDA!$AB$18,(VALUE((RIGHT(P140,3))))))) -> 234.464 | Y140: =IF(OR(V140=0,DEMANDA!$AB$18<=X140),0,(DEMANDA!$AB$18-X140)) -> 0 | Z140: 0
N141: 122 | O141: Serviços comerciais | Q141: 59 | R141: 41 | S141: 33 | T141: 122 - Serviços comerciais | U141: 59 | V141: 0 | W141: 0 | X141: =IF((U141=0),0,(IF((P141=0),DEMANDA!$AB$18,(VALUE((RIGHT(P141,3))))))) -> 234.464 | Y141: =IF(OR(V141=0,DEMANDA!$AB$18<=X141),0,(DEMANDA!$AB$18-X141)) -> 0 | Z141: 0
N142: 123 | O142: Serviços auxiliares do comércio de mercadorias, inclusive de distribuição | Q142: 36 | R142: 23 | S142: 24 | T142: 123 - Serviços auxiliares do comércio de mercadorias, inclusive de distribuição | U142: 36 | V142: 0 | W142: 0 | X142: =IF((U142=0),0,(IF((P142=0),DEMANDA!$AB$18,(VALUE((RIGHT(P142,3))))))) -> 234.464 | Y142: =IF(OR(V142=0,DEMANDA!$AB$18<=X142),0,(DEMANDA!$AB$18-X142)) -> 0 | Z142: 0
N143: 124 | O143: Armazéns gerais e trapiches | Q143: 48 | R143: 26 | S143: 14 | T143: 124 - Armazéns gerais e trapiches | U143: 48 | V143: 0 | W143: 0 | X143: =IF((U143=0),0,(IF((P143=0),DEMANDA!$AB$18,(VALUE((RIGHT(P143,3))))))) -> 234.464 | Y143: =IF(OR(V143=0,DEMANDA!$AB$18<=X143),0,(DEMANDA!$AB$18-X143)) -> 0 | Z143: 0
N144: 125 | O144: Serviço de processamento de dados | Q144: 78 | R144: 56 | S144: 50 | T144: 125 - Serviço de processamento de dados | U144: 78 | V144: 0 | W144: 0 | X144: =IF((U144=0),0,(IF((P144=0),DEMANDA!$AB$18,(VALUE((RIGHT(P144,3))))))) -> 234.464 | Y144: =IF(OR(V144=0,DEMANDA!$AB$18<=X144),0,(DEMANDA!$AB$18-X144)) -> 0 | Z144: 0
N145: 126 | O145: Serviços de contabilidade e despachante | Q145: 74 | R145: 59 | S145: 43 | T145: 126 - Serviços de contabilidade e despachante | U145: 74 | V145: 0 | W145: 0 | X145: =IF((U145=0),0,(IF((P145=0),DEMANDA!$AB$18,(VALUE((RIGHT(P145,3))))))) -> 234.464 | Y145: =IF(OR(V145=0,DEMANDA!$AB$18<=X145),0,(DEMANDA!$AB$18-X145)) -> 0 | Z145: 0
N146: 127 | O146: Serviços de diversões | Q146: 26 | R146: 13 | S146: 20 | T146: 127 - Serviços de diversões | U146: 26 | V146: 0 | W146: 0 | X146: =IF((U146=0),0,(IF((P146=0),DEMANDA!$AB$18,(VALUE((RIGHT(P146,3))))))) -> 234.464 | Y146: =IF(OR(V146=0,DEMANDA!$AB$18<=X146),0,(DEMANDA!$AB$18-X146)) -> 0 | Z146: 0
N147: 128 | O147: Entidades financeiras | Q147: 92 | R147: 64 | S147: 31 | T147: 128 - Entidades financeiras | U147: 92 | V147: 0 | W147: 0 | X147: =IF((U147=0),0,(IF((P147=0),DEMANDA!$AB$18,(VALUE((RIGHT(P147,3))))))) -> 234.464 | Y147: =IF(OR(V147=0,DEMANDA!$AB$18<=X147),0,(DEMANDA!$AB$18-X147)) -> 0 | Z147: 0
N148: 129 | O148: Bancos comerciais e caixas econômicas | Q148: 92 | R148: 64 | S148: 31 | T148: 129 - Bancos comerciais e caixas econômicas | U148: 92 | V148: 0 | W148: 0 | X148: =IF((U148=0),0,(IF((P148=0),DEMANDA!$AB$18,(VALUE((RIGHT(P148,3))))))) -> 234.464 | Y148: =IF(OR(V148=0,DEMANDA!$AB$18<=X148),0,(DEMANDA!$AB$18-X148)) -> 0 | Z148: 0
N149: 130 | O149: Comércio atacadista | Q149: 44 | R149: 37 | S149: 32 | T149: 130 - Comércio atacadista | U149: 44 | V149: 0 | W149: 0 | X149: =IF((U149=0),0,(IF((P149=0),DEMANDA!$AB$18,(VALUE((RIGHT(P149,3))))))) -> 234.464 | Y149: =IF(OR(V149=0,DEMANDA!$AB$18<=X149),0,(DEMANDA!$AB$18-X149)) -> 0 | Z149: 0
N150: 131 | O150: Comércio atacadista de ferragens e produtos metalúrgicos | Q150: 46 | R150: 25 | S150: 17 | T150: 131 - Comércio atacadista de ferragens e produtos metalúrgicos | U150: 46 | V150: 0 | W150: 0 | X150: =IF((U150=0),0,(IF((P150=0),DEMANDA!$AB$18,(VALUE((RIGHT(P150,3))))))) -> 234.464 | Y150: =IF(OR(V150=0,DEMANDA!$AB$18<=X150),0,(DEMANDA!$AB$18-X150)) -> 0 | Z150: 0
N151: 132 | O151: Comércio atacadista de combustíveis e lubrificantes (terminal) | Q151: 44 | R151: 35 | S151: 29 | T151: 132 - Comércio atacadista de combustíveis e lubrificantes (terminal) | U151: 44 | V151: 0 | W151: 0 | X151: =IF((U151=0),0,(IF((P151=0),DEMANDA!$AB$18,(VALUE((RIGHT(P151,3))))))) -> 234.464 | Y151: =IF(OR(V151=0,DEMANDA!$AB$18<=X151),0,(DEMANDA!$AB$18-X151)) -> 0 | Z151: 0
N152: 133 | O152: Comércio atacadista de cereais e farinhas | Q152: 27 | R152: 13 | S152: 23 | T152: 133 - Comércio atacadista de cereais e farinhas | U152: 27 | V152: 0 | W152: 0 | X152: =IF((U152=0),0,(IF((P152=0),DEMANDA!$AB$18,(VALUE((RIGHT(P152,3))))))) -> 234.464 | Y152: =IF(OR(V152=0,DEMANDA!$AB$18<=X152),0,(DEMANDA!$AB$18-X152)) -> 0 | Z152: 0
N153: 134 | O153: Comércio atacadista de produtos alimentícios diversos | Q153: 46 | R153: 34 | S153: 32 | T153: 134 - Comércio atacadista de produtos alimentícios diversos | U153: 46 | V153: 0 | W153: 0 | X153: =IF((U153=0),0,(IF((P153=0),DEMANDA!$AB$18,(VALUE((RIGHT(P153,3))))))) -> 234.464 | Y153: =IF(OR(V153=0,DEMANDA!$AB$18<=X153),0,(DEMANDA!$AB$18-X153)) -> 0 | Z153: 0
N154: 135 | O154: Comércio atacadista de mercadorias em geral com produtos alimentícios | Q154: 96 | R154: 65 | S154: 56 | T154: 135 - Comércio atacadista de mercadorias em geral com produtos alimentícios | U154: 96 | V154: 0 | W154: 0 | X154: =IF((U154=0),0,(IF((P154=0),DEMANDA!$AB$18,(VALUE((RIGHT(P154,3))))))) -> 234.464 | Y154: =IF(OR(V154=0,DEMANDA!$AB$18<=X154),0,(DEMANDA!$AB$18-X154)) -> 0 | Z154: 0
N155: 136 | O155: Comércio varejista | Q155: 75 | R155: 52 | S155: 38 | T155: 136 - Comércio varejista | U155: 75 | V155: 0 | W155: 0 | X155: =IF((U155=0),0,(IF((P155=0),DEMANDA!$AB$18,(VALUE((RIGHT(P155,3))))))) -> 234.464 | Y155: =IF(OR(V155=0,DEMANDA!$AB$18<=X155),0,(DEMANDA!$AB$18-X155)) -> 0 | Z155: 0
N156: 137 | O156: Comércio varejista de veículos | Q156: 60 | R156: 36 | S156: 25 | T156: 137 - Comércio varejista de veículos | U156: 60 | V156: 0 | W156: 0 | X156: =IF((U156=0),0,(IF((P156=0),DEMANDA!$AB$18,(VALUE((RIGHT(P156,3))))))) -> 234.464 | Y156: =IF(OR(V156=0,DEMANDA!$AB$18<=X156),0,(DEMANDA!$AB$18-X156)) -> 0 | Z156: 0
N157: 138 | O157: Comércio varejista de veículos e acessórios | Q157: 91 | R157: 69 | S157: 23 | T157: 138 - Comércio varejista de veículos e acessórios | U157: 91 | V157: 0 | W157: 0 | X157: =IF((U157=0),0,(IF((P157=0),DEMANDA!$AB$18,(VALUE((RIGHT(P157,3))))))) -> 234.464 | Y157: =IF(OR(V157=0,DEMANDA!$AB$18<=X157),0,(DEMANDA!$AB$18-X157)) -> 0 | Z157: 0
N158: 139 | O158: Comércio varejista de móveis, artigos de habitação e de utilidade doméstica | Q158: 40 | R158: 37 | S158: 47 | T158: 139 - Comércio varejista de móveis, artigos de habitação e de utilidade doméstica | U158: 40 | V158: 0 | W158: 0 | X158: =IF((U158=0),0,(IF((P158=0),DEMANDA!$AB$18,(VALUE((RIGHT(P158,3))))))) -> 234.464 | Y158: =IF(OR(V158=0,DEMANDA!$AB$18<=X158),0,(DEMANDA!$AB$18-X158)) -> 0 | Z158: 0
N159: 140 | O159: Comércio varejista de combustíveis e lubrificantes, exclusive gás liquefeito de petróleo | Q159: 89 | R159: 42 | S159: 40 | T159: 140 - Comércio varejista de combustíveis e lubrificantes, exclusive gás liquefeito de petróleo | U159: 89 | V159: 0 | W159: 0 | X159: =IF((U159=0),0,(IF((P159=0),DEMANDA!$AB$18,(VALUE((RIGHT(P159,3))))))) -> 234.464 | Y159: =IF(OR(V159=0,DEMANDA!$AB$18<=X159),0,(DEMANDA!$AB$18-X159)) -> 0 | Z159: 0
N160: 141 | O160: Supermercados | Q160: 98 | R160: 77 | S160: 54 | T160: 141 - Supermercados | U160: 98 | V160: 0 | W160: 0 | X160: =IF((U160=0),0,(IF((P160=0),DEMANDA!$AB$18,(VALUE((RIGHT(P160,3))))))) -> 234.464 | Y160: =IF(OR(V160=0,DEMANDA!$AB$18<=X160),0,(DEMANDA!$AB$18-X160)) -> 0 | Z160: 0
N161: 142 | O161: Cooperativas | Q161: 87 | R161: 75 | S161: 41 | T161: 142 - Cooperativas | U161: 87 | V161: 0 | W161: 0 | X161: =IF((U161=0),0,(IF((P161=0),DEMANDA!$AB$18,(VALUE((RIGHT(P161,3))))))) -> 234.464 | Y161: =IF(OR(V161=0,DEMANDA!$AB$18<=X161),0,(DEMANDA!$AB$18-X161)) -> 0 | Z161: 0
N162: 143 | O162: Cooperativas de beneficiamento, industrialização e comercialização | Q162: 98 | R162: 82 | S162: 27 | T162: 143 - Cooperativas de beneficiamento, industrialização e comercialização | U162: 98 | V162: 0 | W162: 0 | X162: =IF((U162=0),0,(IF((P162=0),DEMANDA!$AB$18,(VALUE((RIGHT(P162,3))))))) -> 234.464 | Y162: =IF(OR(V162=0,DEMANDA!$AB$18<=X162),0,(DEMANDA!$AB$18-X162)) -> 0 | Z162: 0
N163: 144 | O163: Cooperativas de consumo de bens e serviços | Q163: 77 | R163: 69 | S163: 54 | T163: 144 - Cooperativas de consumo de bens e serviços | U163: 77 | V163: 0 | W163: 0 | X163: =IF((U163=0),0,(IF((P163=0),DEMANDA!$AB$18,(VALUE((RIGHT(P163,3))))))) -> 234.464 | Y163: =IF(OR(V163=0,DEMANDA!$AB$18<=X163),0,(DEMANDA!$AB$18-X163)) -> 0 | Z163: 0
N164: 145 | O164: Fundações, entidades e associações de fins não lucrativos | Q164: 40 | R164: 27 | S164: 20 | T164: 145 - Fundações, entidades e associações de fins não lucrativos | U164: 40 | V164: 0 | W164: 0 | X164: =IF((U164=0),0,(IF((P164=0),DEMANDA!$AB$18,(VALUE((RIGHT(P164,3))))))) -> 234.464 | Y164: =IF(OR(V164=0,DEMANDA!$AB$18<=X164),0,(DEMANDA!$AB$18-X164)) -> 0 | Z164: 0
N165: 146 | O165: Fundações beneficentes, religiosas e assistenciais | Q165: 33 | R165: 20 | S165: 26 | T165: 146 - Fundações beneficentes, religiosas e assistenciais | U165: 33 | V165: 0 | W165: 0 | X165: =IF((U165=0),0,(IF((P165=0),DEMANDA!$AB$18,(VALUE((RIGHT(P165,3))))))) -> 234.464 | Y165: =IF(OR(V165=0,DEMANDA!$AB$18<=X165),0,(DEMANDA!$AB$18-X165)) -> 0 | Z165: 0
N166: 147 | O166: Fundações culturais, científicas e educacionais | Q166: 22 | R166: 17 | S166: 18 | T166: 147 - Fundações culturais, científicas e educacionais | U166: 22 | V166: 0 | W166: 0 | X166: =IF((U166=0),0,(IF((P166=0),DEMANDA!$AB$18,(VALUE((RIGHT(P166,3))))))) -> 234.464 | Y166: =IF(OR(V166=0,DEMANDA!$AB$18<=X166),0,(DEMANDA!$AB$18-X166)) -> 0 | Z166: 0
N167: 148 | O167: Associações beneficentes, religiosas e assistenciais | Q167: 65 | R167: 41 | S167: 33 | T167: 148 - Associações beneficentes, religiosas e assistenciais | U167: 65 | V167: 0 | W167: 0 | X167: =IF((U167=0),0,(IF((P167=0),DEMANDA!$AB$18,(VALUE((RIGHT(P167,3))))))) -> 234.464 | Y167: =IF(OR(V167=0,DEMANDA!$AB$18<=X167),0,(DEMANDA!$AB$18-X167)) -> 0 | Z167: 0
N168: 149 | O168: Associações esportivas e recreativas | Q168: 40 | R168: 29 | S168: 3 | T168: 149 - Associações esportivas e recreativas | U168: 40 | V168: 0 | W168: 0 | X168: =IF((U168=0),0,(IF((P168=0),DEMANDA!$AB$18,(VALUE((RIGHT(P168,3))))))) -> 234.464 | Y168: =IF(OR(V168=0,DEMANDA!$AB$18<=X168),0,(DEMANDA!$AB$18-X168)) -> 0 | Z168: 0
N169: 150 | O169: Administração pública direta ou Autárquica | Q169: 81 | R169: 45 | S169: 43 | T169: 150 - Administração pública direta ou Autárquica | U169: 81 | V169: 0 | W169: 0 | X169: =IF((U169=0),0,(IF((P169=0),DEMANDA!$AB$18,(VALUE((RIGHT(P169,3))))))) -> 234.464 | Y169: =IF(OR(V169=0,DEMANDA!$AB$18<=X169),0,(DEMANDA!$AB$18-X169)) -> 0 | Z169: 0

Sheet CAMPOS (hidden)
A1: DADOS | E1: DEMANDA
A2: CAMPO | B2: DADOS | C2: FORMULA | E2: CAMPO | F2: DADOS | G2: FORMULA
A3: =DADOS!C7 -> TIPO DE PROJETO: | B3: =DADOS!F7 -> Subestação Aérea | C3: NÃO | E3: =DEMANDA!B5 -> PROPRIETÁRIO: | F3: =DEMANDA!C5 -> Proprietário Exemplo | G3: SIM
A4: =DADOS!M7 -> PREVISÃO DE ATENDIMENTO: | B4: =DADOS!R7 -> Junho | C4: NÃO | E4: =DEMANDA!B6 -> EDIFICAÇÃO: | F4: =DEMANDA!C6 -> Hotel Exemplo | G4: SIM
A5: =A4 -> PREVISÃO DE ATENDIMENTO: | B5: =DADOS!U7 -> 2017 | C5: NÃO | E5: =DEMANDA!B7 -> ENDEREÇO: | F5: =DEMANDA!C7 -> Rua do Hotel Exemplo | G5: SIM
A6: =DADOS!C8 -> FINALIDADE: | B6: =DADOS!F8 -> Atender a um Hotel com entrada em tensão primária. | C6: NÃO | E6: =DEMANDA!B8 -> CARGA | F6: =DEMANDA!B9 -> Iluminação | G6: NÃO
A7: =DADOS!C12 -> DADOS DO PROPRIETÁRIO | B7: =DADOS!G12 ->  | C7: SIM | E7: =E6 -> CARGA | F7: =DEMANDA!B10 -> Tomadas | G7: NÃO
A8: =DADOS!C14 -> NOME: | B8: =DADOS!F14 -> Proprietário Exemplo | C8: NÃO | E8: =E7 -> CARGA | F8: =DEMANDA!B11 -> Chuv. Eletrico | G8: NÃO
A9: =DADOS!C15 -> PESSOA: | B9: =DADOS!F15 -> Empresa Privada | C9: NÃO | E9: CARGA | F9: =DEMANDA!B12 -> Central de Ar | G9: NÃO
A10: =DADOS!J15 -> CNPJ: | B10: =DADOS!L15 -> 25.086.034/0001-71 | C10: NÃO | E10: CARGA | F10: =DEMANDA!B13 -> Exautores | G10: NÃO
A11: =DADOS!P15 -> INSC.ESTADUAL: | B11: =DADOS!S15 -> 123456 | C11: NÃO | E11: CARGA | F11: =DEMANDA!B14 -> Bomba | G11: NÃO
A12: =DADOS!C16 -> ENDEREÇO: | B12: =DADOS!F16 -> Rua Endereço do Proprietario | C12: NÃO | E12: CARGA | F12: =DEMANDA!B15 -> Elevador | G12: NÃO
A13: =DADOS!P16 -> Nº: | B13: =DADOS!Q16 -> 111 | C13: NÃO | E13: CARGA | F13: =DEMANDA!B16 -> 0 | G13: NÃO
A14: =DADOS!S16 -> COMP.: | B14: =DADOS!U16 -> 0 | C14: NÃO | E14: CARGA | F14: =DEMANDA!B17 -> 0 | G14: NÃO
A15: =DADOS!C17 -> BAIRRO: | B15: =DADOS!F17 -> Manaira | C15: NÃO | E15: CARGA | F15: =DEMANDA!B18 -> 0 | G15: NÃO
A16: =DADOS!L17 -> CIDADE: | B16: =DADOS!N17 -> João Pessoa | C16: NÃO | E16: CARGA | F16: =DEMANDA!B19 -> 0 | G16: NÃO
A17: =DADOS!U17 -> UF: | B17: =DADOS!V17 -> PB | C17: NÃO | E17: CARGA | F17: =DEMANDA!B20 -> 0 | G17: NÃO
A18: =DADOS!C18 -> EMAIL: | B18: =DADOS!F18 -> email@proprietario.com.br | C18: NÃO | E18: CARGA | F18: =DEMANDA!B21 -> 0 | G18: NÃO
A19: =A18 -> EMAIL: | B19: =DADOS!F19 -> 0 | C19: NÃO | E19: CARGA | F19: =DEMANDA!B22 -> 0 | G19: NÃO
A20: =DADOS!C20 -> TELEFONE-01: | B20: =DADOS!F20 -> (83) 12345-6789 | C20: NÃO | E20: CARGA | F20: =DEMANDA!B23 -> 0 | G20: NÃO
A21: =DADOS!K20 -> 02: | B21: =DADOS!L20 -> 0 | C21: NÃO | E21: CARGA | F21: =DEMANDA!B24 -> 0 | G21: NÃO
A22: =DADOS!Q20 -> 03: | B22: =DADOS!R20 -> 0 | C22: NÃO | E22: CARGA | F22: =DEMANDA!B25 -> 0 | G22: NÃO
A23: =DADOS!C21 -> DADOS DA OBRA | B23: =DADOS!G21 ->  | C23: SIM | E23: CARGA | F23: =DEMANDA!B26 -> 0 | G23: NÃO
A24: =DADOS!C23 -> EDIFICAÇÃO: | B24: =DADOS!F23 -> Hotel Exemplo | C24: NÃO | E24: CARGA | F24: =DEMANDA!B27 -> 0 | G24: NÃO
A25: =DADOS!C24 -> ENDEREÇO: | B25: =DADOS!F24 -> Rua do Hotel Exemplo | C25: NÃO | E25: CARGA | F25: =DEMANDA!B28 -> 0 | G25: NÃO
A26: =DADOS!P24 -> N°: | B26: =DADOS!Q24 -> 222 | C26: NÃO | E26: CARGA | F26: =DEMANDA!B29 -> 0 | G26: NÃO
A27: =DADOS!S24 -> COMP.: | B27: =DADOS!U24 -> 0 | C27: NÃO | E27: CARGA | F27: =DEMANDA!B30 -> 0 | G27: NÃO
A28: =DADOS!C25 -> BAIRRO: | B28: =DADOS!F25 -> Tambaú | C28: NÃO | E28: CARGA | F28: =DEMANDA!B31 -> 0 | G28: NÃO
A29: =DADOS!L25 -> CIDADE: | B29: =DADOS!N25 -> João Pessoa | C29: NÃO | E29: CARGA | F29: =DEMANDA!B32 -> 0 | G29: NÃO
A30: =DADOS!S25 -> ZONA: | B30: =DADOS!U25 -> Urbana | C30: NÃO | E30: CARGA | F30: =DEMANDA!B33 -> 0 | G30: NÃO
A31: =DADOS!C26 -> MEDIÇÕES EXISTENTES: | B31: =DADOS!G26 ->  | C31: SIM | E31: =DEMANDA!C8 -> TIPO DE CARGA | F31: =DEMANDA!C9 -> Ilum./Tomadas | G31: NÃO
A32: =DADOS!H28 -> EXISTE ALGUMA MEDIÇÃO NO LOCAL A SER ATENDIDO? | B32: =DADOS!Q28 -> SIM | C32: SIM | E32: =E31 -> TIPO DE CARGA | F32: =DEMANDA!C10 -> Ilum./Tomadas | G32: NÃO
A33: =DADOS!S28 -> QUANTAS? | B33: =DADOS!U28 -> 1 | C33: SIM | E33: =E32 -> TIPO DE CARGA | F33: =DEMANDA!C11 -> Aquecimento | G33: NÃO
A34: =DADOS!C30 -> Nº UC: | B34: =DADOS!E30 -> 1234566 | C34: NÃO | E34: TIPO DE CARGA | F34: =DEMANDA!C12 -> Refrigeração | G34: NÃO
A35: =DADOS!C31 -> 0 | B35: =DADOS!E31 -> 0 | C35: NÃO | E35: TIPO DE CARGA | F35: =DEMANDA!C13 -> Motriz Monofásica | G35: NÃO
A36: =DADOS!C32 -> 0 | B36: =DADOS!E32 -> 0 | C36: NÃO | E36: TIPO DE CARGA | F36: =DEMANDA!C14 -> Motriz Trifásica | G36: NÃO
A37: =DADOS!C33 -> 0 | B37: =DADOS!E33 -> 0 | C37: NÃO | E37: TIPO DE CARGA | F37: =DEMANDA!C15 -> Motriz Trifásica | G37: NÃO
A38: =DADOS!C34 -> 0 | B38: =DADOS!E34 -> 0 | C38: NÃO | E38: TIPO DE CARGA | F38: =DEMANDA!C16 -> 0 | G38: NÃO
A39: =DADOS!H30 -> 0 | B39: =DADOS!J30 -> 0 | C39: NÃO | E39: TIPO DE CARGA | F39: =DEMANDA!C17 -> 0 | G39: NÃO
A40: =DADOS!H31 -> 0 | B40: =DADOS!J31 -> 0 | C40: NÃO | E40: TIPO DE CARGA | F40: =DEMANDA!C18 -> 0 | G40: NÃO
A41: =DADOS!H32 -> 0 | B41: =DADOS!J32 -> 0 | C41: NÃO | E41: TIPO DE CARGA | F41: =DEMANDA!C19 -> 0 | G41: NÃO
A42: =DADOS!H33 -> 0 | B42: =DADOS!J33 -> 0 | C42: NÃO | E42: TIPO DE CARGA | F42: =DEMANDA!C20 -> 0 | G42: NÃO
A43: =DADOS!H34 -> 0 | B43: =DADOS!J34 -> 0 | C43: NÃO | E43: TIPO DE CARGA | F43: =DEMANDA!C21 -> 0 | G43: NÃO
A44: =DADOS!M30 -> 0 | B44: =DADOS!O30 -> 0 | C44: NÃO | E44: TIPO DE CARGA | F44: =DEMANDA!C22 -> 0 | G44: NÃO
A45: =DADOS!M31 -> 0 | B45: =DADOS!O31 -> 0 | C45: NÃO | E45: TIPO DE CARGA | F45: =DEMANDA!C23 -> 0 | G45: NÃO
A46: =DADOS!M32 -> 0 | B46: =DADOS!O32 -> 0 | C46: NÃO | E46: TIPO DE CARGA | F46: =DEMANDA!C24 -> 0 | G46: NÃO
A47: =DADOS!M33 -> 0 | B47: =DADOS!O33 -> 0 | C47: NÃO | E47: TIPO DE CARGA | F47: =DEMANDA!C25 -> 0 | G47: NÃO
A48: =DADOS!M34 -> 0 | B48: =DADOS!O34 -> 0 | C48: NÃO | E48: TIPO DE CARGA | F48: =DEMANDA!C26 -> 0 | G48: NÃO
A49: =DADOS!R30 -> 0 | B49: =DADOS!T30 -> 0 | C49: NÃO | E49: TIPO DE CARGA | F49: =DEMANDA!C27 -> 0 | G49: NÃO
A50: =DADOS!R31 -> 0 | B50: =DADOS!T31 -> 0 | C50: NÃO | E50: TIPO DE CARGA | F50: =DEMANDA!C28 -> 0 | G50: NÃO
A51: =DADOS!R32 -> 0 | B51: =DADOS!T32 -> 0 | C51: NÃO | E51: TIPO DE CARGA | F51: =DEMANDA!C29 -> 0 | G51: NÃO
A52: =DADOS!R33 -> 0 | B52: =DADOS!T33 -> 0 | C52: NÃO | E52: TIPO DE CARGA | F52: =DEMANDA!C30 -> 0 | G52: NÃO
A53: =DADOS!R34 -> 0 | B53: =DADOS!T34 -> 0 | C53: NÃO | E53: TIPO DE CARGA | F53: =DEMANDA!C31 -> 0 | G53: NÃO
A54: =DADOS!C35 -> OBSERVAÇÃO: | B54: =DADOS!C36 -> Existe uma medição do canteiro de obras em baixa tensão tarifada no grupo B que deverá ser desativada quando da energização do hotel que será atendido em média tensão tarifado no Grupo A | C54: NÃO | E54: TIPO DE CARGA | F54: =DEMANDA!C32 -> 0 | G54: NÃO
A55: =DADOS!C41 -> DADOS DO RESP. TÉCNICO | B55: =DADOS!G41 ->  | C55: SIM | E55: TIPO DE CARGA | F55: =DEMANDA!C33 -> 0 | G55: NÃO
A56: =DADOS!C43 -> NOME: | B56: =DADOS!F43 -> Projetista Modelo | C56: NÃO | E56: =DEMANDA!D8 -> QTD | F56: =DEMANDA!D9 -> 100 | G56: NÃO
A57: =DADOS!C44 -> REG. PROFISSIONAL: | B57: =DADOS!F44 -> 4551626 | C57: NÃO | E57: =E56 -> QTD | F57: =DEMANDA!D10 -> 60 | G57: NÃO
A58: =DADOS!J44 -> ORGÃO: | B58: =DADOS!L44 -> CREA | C58: NÃO | E58: =E57 -> QTD | F58: =DEMANDA!D11 -> 8 | G58: NÃO
A59: =DADOS!P44 -> CPF: | B59: =DADOS!S44 -> 123.4565.789-11 | C59: NÃO | E59: QTD | F59: =DEMANDA!D12 -> 2 | G59: NÃO
A60: =DADOS!C45 -> EMAIL: | B60: =DADOS!F45 -> email@projetista.com.br | C60: NÃO | E60: QTD | F60: =DEMANDA!D13 -> 12 | G60: NÃO
A61: =A60 -> EMAIL: | B61: =DADOS!F46 -> 0 | C61: NÃO | E61: QTD | F61: =DEMANDA!D14 -> 4 | G61: NÃO
A62: =DADOS!C47 -> TELEFONE-01: | B62: =DADOS!F47 -> (83) 98765-4321 | C62: NÃO | E62: QTD | F62: =DEMANDA!D15 -> 3 | G62: NÃO
A63: =DADOS!K47 -> 02: | B63: =DADOS!L47 -> 0 | C63: NÃO | E63: QTD | F63: =DEMANDA!D16 -> 0 | G63: NÃO
A64: =DADOS!Q47 -> 03: | B64: =DADOS!R47 -> 0 | C64: NÃO | E64: QTD | F64: =DEMANDA!D17 -> 0 | G64: NÃO
E65: QTD | F65: =DEMANDA!D18 -> 0 | G65: NÃO
E66: QTD | F66: =DEMANDA!D19 -> 0 | G66: NÃO
E67: QTD | F67: =DEMANDA!D20 -> 0 | G67: NÃO
E68: QTD | F68: =DEMANDA!D21 -> 0 | G68: NÃO
E69: QTD | F69: =DEMANDA!D22 -> 0 | G69: NÃO
E70: QTD | F70: =DEMANDA!D23 -> 0 | G70: NÃO
E71: QTD | F71: =DEMANDA!D24 -> 0 | G71: NÃO
E72: QTD | F72: =DEMANDA!D25 -> 0 | G72: NÃO
E73: QTD | F73: =DEMANDA!D26 -> 0 | G73: NÃO
E74: QTD | F74: =DEMANDA!D27 -> 0 | G74: NÃO
E75: QTD | F75: =DEMANDA!D28 -> 0 | G75: NÃO
E76: QTD | F76: =DEMANDA!D29 -> 0 | G76: NÃO
E77: QTD | F77: =DEMANDA!D30 -> 0 | G77: NÃO
E78: QTD | F78: =DEMANDA!D31 -> 0 | G78: NÃO
E79: QTD | F79: =DEMANDA!D32 -> 0 | G79: NÃO
E80: QTD | F80: =DEMANDA!D33 -> 0 | G80: NÃO
E81: =DEMANDA!E8 -> EIXO (CV) | F81: =DEMANDA!E9 -> 0 | G81: NÃO
E82: =E81 -> EIXO (CV) | F82: =DEMANDA!E10 -> 0 | G82: NÃO
E83: =E82 -> EIXO (CV) | F83: =DEMANDA!E11 -> 0 | G83: NÃO
E84: EIXO (CV) | F84: =DEMANDA!E12 -> 0 | G84: NÃO
E85: EIXO (CV) | F85: =DEMANDA!E13 -> 2 | G85: NÃO
E86: EIXO (CV) | F86: =DEMANDA!E14 -> 5 | G86: NÃO
E87: EIXO (CV) | F87: =DEMANDA!E15 -> 10 | G87: NÃO
E88: EIXO (CV) | F88: =DEMANDA!E16 -> 0 | G88: NÃO
E89: EIXO (CV) | F89: =DEMANDA!E17 -> 0 | G89: NÃO
E90: EIXO (CV) | F90: =DEMANDA!E18 -> 0 | G90: NÃO
E91: EIXO (CV) | F91: =DEMANDA!E19 -> 0 | G91: NÃO
E92: EIXO (CV) | F92: =DEMANDA!E20 -> 0 | G92: NÃO
E93: EIXO (CV) | F93: =DEMANDA!E21 -> 0 | G93: NÃO
E94: EIXO (CV) | F94: =DEMANDA!E22 -> 0 | G94: NÃO
E95: EIXO (CV) | F95: =DEMANDA!E23 -> 0 | G95: NÃO
E96: EIXO (CV) | F96: =DEMANDA!E24 -> 0 | G96: NÃO
E97: EIXO (CV) | F97: =DEMANDA!E25 -> 0 | G97: NÃO
E98: EIXO (CV) | F98: =DEMANDA!E26 -> 0 | G98: NÃO
E99: EIXO (CV) | F99: =DEMANDA!E27 -> 0 | G99: NÃO
E100: EIXO (CV) | F100: =DEMANDA!E28 -> 0 | G100: NÃO
E101: EIXO (CV) | F101: =DEMANDA!E29 -> 0 | G101: NÃO
E102: EIXO (CV) | F102: =DEMANDA!E30 -> 0 | G102: NÃO
E103: EIXO (CV) | F103: =DEMANDA!E31 -> 0 | G103: NÃO
E104: EIXO (CV) | F104: =DEMANDA!E32 -> 0 | G104: NÃO
E105: EIXO (CV) | F105: =DEMANDA!E33 -> 0 | G105: NÃO
E106: =DEMANDA!F8 -> TENSÃO (V) | F106: =DEMANDA!F9 -> 220V | G106: NÃO
E107: TENSÃO (V) | F107: =DEMANDA!F10 -> 220V | G107: NÃO
E108: TENSÃO (V) | F108: =DEMANDA!F11 -> 220V | G108: NÃO
E109: TENSÃO (V) | F109: =DEMANDA!F12 -> 380V | G109: NÃO
E110: TENSÃO (V) | F110: =DEMANDA!F13 -> 220V | G110: NÃO
E111: TENSÃO (V) | F111: =DEMANDA!F14 -> 380V | G111: NÃO
E112: TENSÃO (V) | F112: =DEMANDA!F15 -> 380V | G112: NÃO
E113: TENSÃO (V) | F113: =DEMANDA!F16 -> 0 | G113: NÃO
E114: TENSÃO (V) | F114: =DEMANDA!F17 -> 0 | G114: NÃO
E115: TENSÃO (V) | F115: =DEMANDA!F18 -> 0 | G115: NÃO
E116: TENSÃO (V) | F116: =DEMANDA!F19 -> 0 | G116: NÃO
E117: TENSÃO (V) | F117: =DEMANDA!F20 -> 0 | G117: NÃO
E118: TENSÃO (V) | F118: =DEMANDA!F21 -> 0 | G118: NÃO
E119: TENSÃO (V) | F119: =DEMANDA!F22 -> 0 | G119: NÃO
E120: TENSÃO (V) | F120: =DEMANDA!F23 -> 0 | G120: NÃO
E121: TENSÃO (V) | F121: =DEMANDA!F24 -> 0 | G121: NÃO
E122: TENSÃO (V) | F122: =DEMANDA!F25 -> 0 | G122: NÃO
E123: TENSÃO (V) | F123: =DEMANDA!F26 -> 0 | G123: NÃO
E124: TENSÃO (V) | F124: =DEMANDA!F27 -> 0 | G124: NÃO
E125: TENSÃO (V) | F125: =DEMANDA!F28 -> 0 | G125: NÃO
E126: TENSÃO (V) | F126: =DEMANDA!F29 -> 0 | G126: NÃO
E127: TENSÃO (V) | F127: =DEMANDA!F30 -> 0 | G127: NÃO
E128: TENSÃO (V) | F128: =DEMANDA!F31 -> 0 | G128: NÃO
E129: TENSÃO (V) | F129: =DEMANDA!F32 -> 0 | G129: NÃO
E130: TENSÃO (V) | F130: =DEMANDA!F33 -> 0 | G130: NÃO
E131: =DEMANDA!G8 -> POT. IND. (W) | F131: =DEMANDA!G9 -> 60 | G131: NÃO
E132: POT. IND. (W) | F132: =DEMANDA!G10 -> 300 | G132: NÃO
E133: POT. IND. (W) | F133: =DEMANDA!G11 -> 4500 | G133: NÃO
E134: POT. IND. (W) | F134: =DEMANDA!G12 -> 60000 | G134: NÃO
E135: POT. IND. (W) | F135: =DEMANDA!G13 -> 2208 | G135: NÃO
E136: POT. IND. (W) | F136: =DEMANDA!G14 -> 3680 | G136: NÃO
E137: POT. IND. (W) | F137: =DEMANDA!G15 -> 7360 | G137: NÃO
E138: POT. IND. (W) | F138: =DEMANDA!G16 -> 0 | G138: NÃO
E139: POT. IND. (W) | F139: =DEMANDA!G17 -> 0 | G139: NÃO
E140: POT. IND. (W) | F140: =DEMANDA!G18 -> 0 | G140: NÃO
E141: POT. IND. (W) | F141: =DEMANDA!G19 -> 0 | G141: NÃO
E142: POT. IND. (W) | F142: =DEMANDA!G20 -> 0 | G142: NÃO
E143: POT. IND. (W) | F143: =DEMANDA!G21 -> 0 | G143: NÃO
E144: POT. IND. (W) | F144: =DEMANDA!G22 -> 0 | G144: NÃO
E145: POT. IND. (W) | F145: =DEMANDA!G23 -> 0 | G145: NÃO
E146: POT. IND. (W) | F146: =DEMANDA!G24 -> 0 | G146: NÃO
E147: =E146 -> POT. IND. (W) | F147: =DEMANDA!G25 -> 0 | G147: NÃO
E148: POT. IND. (W) | F148: =DEMANDA!G26 -> 0 | G148: NÃO
E149: POT. IND. (W) | F149: =DEMANDA!G27 -> 0 | G149: NÃO
E150: POT. IND. (W) | F150: =DEMANDA!G28 -> 0 | G150: NÃO
E151: POT. IND. (W) | F151: =DEMANDA!G29 -> 0 | G151: NÃO
E152: POT. IND. (W) | F152: =DEMANDA!G30 -> 0 | G152: NÃO
E153: POT. IND. (W) | F153: =DEMANDA!G31 -> 0 | G153: NÃO
E154: POT. IND. (W) | F154: =DEMANDA!G32 -> 0 | G154: NÃO
E155: POT. IND. (W) | F155: =DEMANDA!G33 -> 0 | G155: NÃO
E156: =DEMANDA!H8 -> FP | F156: =DEMANDA!H9 -> 0.92 | G156: NÃO
E157: FP | F157: =DEMANDA!H10 -> 0.92 | G157: NÃO
E158: FP | F158: =DEMANDA!H11 -> 1 | G158: NÃO
E159: FP | F159: =DEMANDA!H12 -> 0.9 | G159: NÃO
E160: FP | F160: =DEMANDA!H13 -> 0.96 | G160: NÃO
E161: FP | F161: =DEMANDA!H14 -> 0.9 | G161: NÃO
E162: FP | F162: =DEMANDA!H15 -> 0.9 | G162: NÃO
E163: FP | F163: =DEMANDA!H16 -> 0 | G163: NÃO
E164: FP | F164: =DEMANDA!H17 -> 0 | G164: NÃO
E165: FP | F165: =DEMANDA!H18 -> 0 | G165: NÃO
E166: FP | F166: =DEMANDA!H19 -> 0 | G166: NÃO
E167: FP | F167: =DEMANDA!H20 -> 0 | G167: NÃO
E168: FP | F168: =DEMANDA!H21 -> 0 | G168: NÃO
E169: FP | F169: =DEMANDA!H22 -> 0 | G169: NÃO
E170: FP | F170: =DEMANDA!H23 -> 0 | G170: NÃO
E171: FP | F171: =DEMANDA!H24 -> 0 | G171: NÃO
E172: FP | F172: =DEMANDA!H25 -> 0 | G172: NÃO
E173: FP | F173: =DEMANDA!H26 -> 0 | G173: NÃO
E174: FP | F174: =DEMANDA!H27 -> 0 | G174: NÃO
E175: FP | F175: =DEMANDA!H28 -> 0 | G175: NÃO
E176: FP | F176: =DEMANDA!H29 -> 0 | G176: NÃO
E177: FP | F177: =DEMANDA!H30 -> 0 | G177: NÃO
E178: FP | F178: =DEMANDA!H31 -> 0 | G178: NÃO
E179: FP | F179: =DEMANDA!H32 -> 0 | G179: NÃO
E180: FP | F180: =DEMANDA!H33 -> 0 | G180: NÃO
E181: =DEMANDA!I8 -> CARGA (kW) | F181: =DEMANDA!I9 -> 6 | G181: SIM
E182: CARGA (kW) | F182: =DEMANDA!I10 -> 18 | G182: SIM
E183: CARGA (kW) | F183: =DEMANDA!I11 -> 36 | G183: SIM
E184: CARGA (kW) | F184: =DEMANDA!I12 -> 120 | G184: SIM
E185: CARGA (kW) | F185: =DEMANDA!I13 -> 17.664 | G185: SIM
E186: CARGA (kW) | F186: =DEMANDA!I14 -> 14.72 | G186: SIM
E187: CARGA (kW) | F187: =DEMANDA!I15 -> 22.08 | G187: SIM
E188: CARGA (kW) | F188: =DEMANDA!I16 -> - | G188: SIM
E189: CARGA (kW) | F189: =DEMANDA!I17 -> - | G189: SIM
E190: CARGA (kW) | F190: =DEMANDA!I18 -> - | G190: SIM
E191: CARGA (kW) | F191: =DEMANDA!I19 -> - | G191: SIM
E192: CARGA (kW) | F192: =DEMANDA!I20 -> - | G192: SIM
E193: CARGA (kW) | F193: =DEMANDA!I21 -> - | G193: SIM
E194: CARGA (kW) | F194: =DEMANDA!I22 -> - | G194: SIM
E195: CARGA (kW) | F195: =DEMANDA!I23 -> - | G195: SIM
E196: CARGA (kW) | F196: =DEMANDA!I24 -> - | G196: SIM
E197: CARGA (kW) | F197: =DEMANDA!I25 -> - | G197: SIM
E198: CARGA (kW) | F198: =DEMANDA!I26 -> - | G198: SIM
E199: CARGA (kW) | F199: =DEMANDA!I27 -> - | G199: SIM
E200: CARGA (kW) | F200: =DEMANDA!I28 -> - | G200: SIM
... 60 more rows
